Workbook

Sheet Прайс2
C2: Номер модуля | F2: ='[5]Прайс Массив 20'!D2 -> Наименование модуля | H2: ='[5]Прайс Массив 20'!E2 -> Рисунок модуля | I2: ='[5]Прайс Массив 20'!F2 -> ШИРИНА КОРПУСА | J2: ='[5]Прайс Массив 20'!G2 -> ВЫСОТА КОРПУСА | K2: ='[5]Прайс Массив 20'!H2 -> ГЛУБИНА КОРПУСА | L2: ='[5]Прайс Массив 20'!J2 -> Валенсия 20 КЛАССИКА бук лак | M2: ='[5]Прайс Массив 20'!K2 -> Валенсия 20 КЛАССИКА бук лак+патина | N2: ='[5]Прайс Массив 20'!L2 -> Валенсия 20 Премиум бук лак | O2: ='[5]Прайс Массив 20'!M2 -> Валенсия 20 Премиум бук лак+патина | P2: ='[5]Прайс Массив 20'!N2 -> Валенсия 20 Премиум ясень лак | Q2: ='[5]Прайс Массив 20'!O2 -> Валенсия 20 Премиумясень лак+патина
B3: 1 | C3: 1 | D3: =IF(C3<>0,LOOKUP(,-CODE(C$3:C3),C$3:C3),D2) -> 1 | E3: 1(300)-528 | F3: Тумба кухонная однодверная, полка ЛДСП | I3: 300 | J3: 720 | K3: 528 | L3: 3923.888219 | M3: 4196.803658 | N3: 4230.534779 | O3: 4503.833526 | P3: 5124.409502 | Q3: 5372.793215
C4: 0 | D4: =IF(C4<>0,LOOKUP(,-CODE(C$3:C4),C$3:C4),D3) -> 1 | E4: 1(350)-528 | I4: 350 | J4: 720 | K4: 528 | L4: 4391.075202 | M4: 4709.936 | N4: 4749.345762 | O4: 5068.654398 | P4: 5793.704444 | Q4: 6083.903598
C5: 0 | D5: =IF(C5<>0,LOOKUP(,-CODE(C$3:C5),C$3:C5),D4) -> 1 | E5: 1(400)-528 | I5: 400 | J5: 720 | K5: 528 | L5: 4858.262184 | M5: 5223.068342 | N5: 5268.156744 | O5: 5633.47527 | P5: 6462.999386 | Q5: 6795.01398
C6: 0 | D6: =IF(C6<>0,LOOKUP(,-CODE(C$3:C6),C$3:C6),D5) -> 1 | E6: 1(450)-528 | I6: 450 | J6: 720 | K6: 528 | L6: 5325.449166 | M6: 5736.200684 | N6: 5786.967726 | O6: 6198.296142 | P6: 7132.294328 | Q6: 7506.124362
C7: 0 | D7: =IF(C7<>0,LOOKUP(,-CODE(C$3:C7),C$3:C7),D6) -> 1 | E7: 1(500)-528 | I7: 500 | J7: 720 | K7: 528 | L7: 5792.636148 | M7: 6249.333026 | N7: 6305.778708 | O7: 6763.117014 | P7: 7801.58927 | Q7: 8217.234744
C8: 0 | D8: =IF(C8<>0,LOOKUP(,-CODE(C$3:C8),C$3:C8),D7) -> 1 | E8: 1(550)-528 | I8: 550 | J8: 720 | K8: 528 | L8: 6259.82313 | M8: 6762.465368 | N8: 6824.58969 | O8: 7327.937886 | P8: 8470.884212 | Q8: 8928.345126
C9: 0 | D9: =IF(C9<>0,LOOKUP(,-CODE(C$3:C9),C$3:C9),D8) -> 1 | E9: 1(600)-528 | I9: 600 | J9: 720 | K9: 528 | L9: 6727.010112 | M9: 7275.59771 | N9: 7343.400672 | O9: 7892.758758 | P9: 9140.179154 | Q9: 9639.455508
B10: 3/1 | C10: 2 | D10: =IF(C10<>0,LOOKUP(,-CODE(C$3:C10),C$3:C10),D9) -> 2 | E10: 2-180(300)-528 | F10: Тумба кухонная однодверная с метабоксом,Н - 180 мм, полка ЛДСП | I10: 300 | J10: 720 | K10: 528 | L10: 4766.742016 | M10: 5038.515549 | N10: 5072.105536 | O10: 5344.260773 | P10: 5962.240197 | Q10: 6209.584648
C11: 0 | D11: =IF(C11<>0,LOOKUP(,-CODE(C$3:C11),C$3:C11),D10) -> 2 | E11: 2-180(350)-528 | I11: 350 | J11: 720 | K11: 528 | L11: 5255.780385 | M11: 5573.307038 | N11: 5612.551905 | O11: 5930.524522 | P11: 6652.540886 | Q11: 6941.525817
C12: 0 | D12: =IF(C12<>0,LOOKUP(,-CODE(C$3:C12),C$3:C12),D11) -> 2 | E12: 2-180(400)-528 | I12: 400 | J12: 720 | K12: 528 | L12: 5744.818753 | M12: 6108.098526 | N12: 6152.998273 | O12: 6516.788271 | P12: 7342.841574 | Q12: 7673.466985
C13: 0 | D13: =IF(C13<>0,LOOKUP(,-CODE(C$3:C13),C$3:C13),D12) -> 2 | E13: 2-180(450)-528 | I13: 450 | J13: 720 | K13: 528 | L13: 6233.857122 | M13: 6642.890015 | N13: 6693.444642 | O13: 7103.052019 | P13: 8033.142263 | Q13: 8405.408154
C14: 0 | D14: =IF(C14<>0,LOOKUP(,-CODE(C$3:C14),C$3:C14),D13) -> 2 | E14: 2-180(500)-528 | I14: 500 | J14: 720 | K14: 528 | L14: 6722.895491 | M14: 7177.681504 | N14: 7233.891011 | O14: 7689.315768 | P14: 8723.442952 | Q14: 9137.349323
C15: 0 | D15: =IF(C15<>0,LOOKUP(,-CODE(C$3:C15),C$3:C15),D14) -> 2 | E15: 2-180(550)-528 | I15: 550 | J15: 720 | K15: 528 | L15: 7211.93386 | M15: 7712.472992 | N15: 7774.33738 | O15: 8275.579517 | P15: 9413.74364 | Q15: 9869.290492
C16: 0 | D16: =IF(C16<>0,LOOKUP(,-CODE(C$3:C16),C$3:C16),D15) -> 2 | E16: 2-180(600)-528 | I16: 600 | J16: 720 | K16: 528 | L16: 7700.972228 | M16: 8247.264481 | N16: 8314.783748 | O16: 8861.843265 | P16: 10104.04433 | Q16: 10601.23166
B17: 4/1 | C17: 3 | D17: =IF(C17<>0,LOOKUP(,-CODE(C$3:C17),C$3:C17),D16) -> 3 | E17: 3-180(300)-528 | F17: Тумба кухонная однодверная с леграбоксом,Н - 180 мм, полка ЛДСП | I17: 300 | J17: 720 | K17: 528 | L17: 6105.153321 | M17: 6376.926853 | N17: 6410.516841 | O17: 6682.672078 | P17: 7300.651501 | Q17: 7547.995953
C18: 0 | D18: =IF(C18<>0,LOOKUP(,-CODE(C$3:C18),C$3:C18),D17) -> 3 | E18: 3-180(350)-528 | I18: 350 | J18: 720 | K18: 528 | L18: 6593.876689 | M18: 6911.403342 | N18: 6950.648209 | O18: 7268.620826 | P18: 7990.63719 | Q18: 8279.622121
C19: 0 | D19: =IF(C19<>0,LOOKUP(,-CODE(C$3:C19),C$3:C19),D18) -> 3 | E19: 3-180(400)-528 | I19: 400 | J19: 720 | K19: 528 | L19: 7082.600058 | M19: 7445.879831 | N19: 7490.779578 | O19: 7854.569575 | P19: 8680.622879 | Q19: 9011.24829
C20: 0 | D20: =IF(C20<>0,LOOKUP(,-CODE(C$3:C20),C$3:C20),D19) -> 3 | E20: 3-180(450)-528 | I20: 450 | J20: 720 | K20: 528 | L20: 7571.323427 | M20: 7980.356319 | N20: 8030.910947 | O20: 8440.518324 | P20: 9370.608567 | Q20: 9742.874459
C21: 0 | D21: =IF(C21<>0,LOOKUP(,-CODE(C$3:C21),C$3:C21),D20) -> 3 | E21: 3-180(500)-528 | I21: 500 | J21: 720 | K21: 528 | L21: 8060.046795 | M21: 8514.832808 | N21: 8571.042315 | O21: 9026.467073 | P21: 10060.59426 | Q21: 10474.50063
C22: 0 | D22: =IF(C22<>0,LOOKUP(,-CODE(C$3:C22),C$3:C22),D21) -> 3 | E22: 3-180(550)-528 | I22: 550 | J22: 720 | K22: 528 | L22: 8548.770164 | M22: 9049.309297 | N22: 9111.173684 | O22: 9612.415821 | P22: 10750.57994 | Q22: 11206.1268
C23: 0 | D23: =IF(C23<>0,LOOKUP(,-CODE(C$3:C23),C$3:C23),D22) -> 3 | E23: 3-180(600)-528 | I23: 600 | J23: 720 | K23: 528 | L23: 9037.493533 | M23: 9583.785786 | N23: 9651.305053 | O23: 10198.36457 | P23: 11440.56563 | Q23: 11937.75296
B24: 6 | C24: 4 | D24: =IF(C24<>0,LOOKUP(,-CODE(C$3:C24),C$3:C24),D23) -> 4 | E24: 4(600)-528 | F24: Тумба кухонная двухдверная, полка ЛДСП | I24: 600 | J24: 720 | K24: 528 | L24: 7046.827028 | M24: 7592.657904 | N24: 7660.120148 | O24: 8206.717641 | P24: 9447.869592 | Q24: 9944.63702
C25: 0 | D25: =IF(C25<>0,LOOKUP(,-CODE(C$3:C25),C$3:C25),D24) -> 4 | E25: 4(650)-528 | I25: 650 | J25: 720 | K25: 528 | L25: 7514.01401 | M25: 8105.790246 | N25: 8178.93113 | O25: 8771.538513 | P25: 10117.16453 | Q25: 10655.7474
C26: 0 | D26: =IF(C26<>0,LOOKUP(,-CODE(C$3:C26),C$3:C26),D25) -> 4 | E26: 4(700)-528 | I26: 700 | J26: 720 | K26: 528 | L26: 7981.200992 | M26: 8618.922589 | N26: 8697.742112 | O26: 9336.359385 | P26: 10786.45948 | Q26: 11366.85778
C27: 0 | D27: =IF(C27<>0,LOOKUP(,-CODE(C$3:C27),C$3:C27),D26) -> 4 | E27: 4(750)-528 | I27: 750 | J27: 720 | K27: 528 | L27: 8448.387974 | M27: 9132.054931 | N27: 9216.553094 | O27: 9901.180257 | P27: 11455.75442 | Q27: 12077.96817
C28: 0 | D28: =IF(C28<>0,LOOKUP(,-CODE(C$3:C28),C$3:C28),D27) -> 4 | E28: 4(800)-528 | I28: 800 | J28: 720 | K28: 528 | L28: 8915.574956 | M28: 9645.187273 | N28: 9735.364076 | O28: 10466.00113 | P28: 12125.04936 | Q28: 12789.07855
C29: 0 | D29: =IF(C29<>0,LOOKUP(,-CODE(C$3:C29),C$3:C29),D28) -> 4 | E29: 4(850)-528 | I29: 850 | J29: 720 | K29: 528 | L29: 9382.761938 | M29: 10158.31961 | N29: 10254.17506 | O29: 11030.822 | P29: 12794.3443 | Q29: 13500.18893
C30: 0 | D30: =IF(C30<>0,LOOKUP(,-CODE(C$3:C30),C$3:C30),D29) -> 4 | E30: 4(900)-528 | I30: 900 | J30: 720 | K30: 528 | L30: 9849.94892 | M30: 10671.45196 | N30: 10772.98604 | O30: 11595.64287 | P30: 13463.63924 | Q30: 14211.29931
C31: 0 | D31: =IF(C31<>0,LOOKUP(,-CODE(C$3:C31),C$3:C31),D30) -> 4 | E31: 4(950)-528 | I31: 950 | J31: 720 | K31: 528 | L31: 10317.1359 | M31: 11184.5843 | N31: 11291.79702 | O31: 12160.46375 | P31: 14132.93419 | Q31: 14922.40969
C32: 0 | D32: =IF(C32<>0,LOOKUP(,-CODE(C$3:C32),C$3:C32),D31) -> 4 | E32: 4(1000)-528 | I32: 1000 | J32: 720 | K32: 528 | L32: 10784.32288 | M32: 11697.71664 | N32: 11810.608 | O32: 12725.28462 | P32: 14802.22913 | Q32: 15633.52008
B33: 8/1 | C33: 5 | D33: =IF(C33<>0,LOOKUP(,-CODE(C$3:C33),C$3:C33),D32) -> 5 | E33: 5-180(600)-528 | F33: Тумба кухонная двухдверная с двумя метабоксами,Н - 180 мм, полка ЛДСП | I33: 600 | J33: 720 | K33: 528 | L33: 8962.530083 | M33: 9506.077149 | N33: 9573.257123 | O33: 10117.5676 | P33: 11353.52644 | Q33: 11848.21535
C34: 0 | D34: =IF(C34<>0,LOOKUP(,-CODE(C$3:C34),C$3:C34),D33) -> 5 | E34: 5-180(650)-528 | I34: 650 | J34: 720 | K34: 528 | L34: 9456.197945 | M34: 10045.49813 | N34: 10118.33299 | O34: 10708.46084 | P34: 12048.45663 | Q34: 12584.78601
C35: 0 | D35: =IF(C35<>0,LOOKUP(,-CODE(C$3:C35),C$3:C35),D34) -> 5 | E35: 5-180(700)-528 | I35: 700 | J35: 720 | K35: 528 | L35: 9949.865807 | M35: 10584.91911 | N35: 10663.40885 | O35: 11299.35408 | P35: 12743.38681 | Q35: 13321.35667
C36: 0 | D36: =IF(C36<>0,LOOKUP(,-CODE(C$3:C36),C$3:C36),D35) -> 5 | E36: 5-180(750)-528 | I36: 750 | J36: 720 | K36: 528 | L36: 10443.53367 | M36: 11124.34009 | N36: 11208.48471 | O36: 11890.24732 | P36: 13438.31699 | Q36: 14057.92733
C37: 0 | D37: =IF(C37<>0,LOOKUP(,-CODE(C$3:C37),C$3:C37),D36) -> 5 | E37: 5-180(800)-528 | I37: 800 | J37: 720 | K37: 528 | L37: 10937.20153 | M37: 11663.76108 | N37: 11753.56057 | O37: 12481.14057 | P37: 14133.24717 | Q37: 14794.498
C38: 0 | D38: =IF(C38<>0,LOOKUP(,-CODE(C$3:C38),C$3:C38),D37) -> 5 | E38: 5-180(850)-528 | I38: 850 | J38: 720 | K38: 528 | L38: 11430.86939 | M38: 12203.18206 | N38: 12298.63643 | O38: 13072.03381 | P38: 14828.17735 | Q38: 15531.06866
C39: 0 | D39: =IF(C39<>0,LOOKUP(,-CODE(C$3:C39),C$3:C39),D38) -> 5 | E39: 5-180(900)-528 | I39: 900 | J39: 720 | K39: 528 | L39: 11924.53726 | M39: 12742.60304 | N39: 12843.7123 | O39: 13662.92705 | P39: 15523.10754 | Q39: 16267.63932
C40: 0 | D40: =IF(C40<>0,LOOKUP(,-CODE(C$3:C40),C$3:C40),D39) -> 5 | E40: 5-180(950)-528 | I40: 950 | J40: 720 | K40: 528 | L40: 12418.20512 | M40: 13282.02402 | N40: 13388.78816 | O40: 14253.82029 | P40: 16218.03772 | Q40: 17004.20998
C41: 0 | D41: =IF(C41<>0,LOOKUP(,-CODE(C$3:C41),C$3:C41),D40) -> 5 | E41: 5-180(1000)-528 | I41: 1000 | J41: 720 | K41: 528 | L41: 12911.87298 | M41: 13821.445 | N41: 13933.86402 | O41: 14844.71353 | P41: 16912.9679 | Q41: 17740.78064
B42: 219/1 | C42: 6 | D42: =IF(C42<>0,LOOKUP(,-CODE(C$3:C42),C$3:C42),D41) -> 6 | E42: 6-180(600)-528 | F42: Тумба кухонная двухдверная с двумя леграбоксами,Н - 180 мм, полка ЛДСП | I42: 600 | J42: 720 | K42: 528 | L42: 11639.35269 | M42: 12182.89976 | N42: 12250.07973 | O42: 12794.39021 | P42: 14030.34905 | Q42: 14525.03796
C43: 0 | D43: =IF(C43<>0,LOOKUP(,-CODE(C$3:C43),C$3:C43),D42) -> 6 | E43: 6-180(650)-528 | I43: 650 | J43: 720 | K43: 528 | L43: 12132.70555 | M43: 12722.00574 | N43: 12794.84059 | O43: 13384.96845 | P43: 14724.96424 | Q43: 15261.29362
C44: 0 | D44: =IF(C44<>0,LOOKUP(,-CODE(C$3:C44),C$3:C44),D43) -> 6 | E44: 6-180(700)-528 | I44: 700 | J44: 720 | K44: 528 | L44: 12626.05842 | M44: 13261.11172 | N44: 13339.60146 | O44: 13975.54669 | P44: 15419.57942 | Q44: 15997.54928
C45: 0 | D45: =IF(C45<>0,LOOKUP(,-CODE(C$3:C45),C$3:C45),D44) -> 6 | E45: 6-180(750)-528 | I45: 750 | J45: 720 | K45: 528 | L45: 13119.41128 | M45: 13800.2177 | N45: 13884.36232 | O45: 14566.12493 | P45: 16114.1946 | Q45: 16733.80494
C46: 0 | D46: =IF(C46<>0,LOOKUP(,-CODE(C$3:C46),C$3:C46),D45) -> 6 | E46: 6-180(800)-528 | I46: 800 | J46: 720 | K46: 528 | L46: 13612.76414 | M46: 14339.32369 | N46: 14429.12318 | O46: 15156.70317 | P46: 16808.80978 | Q46: 17470.0606
C47: 0 | D47: =IF(C47<>0,LOOKUP(,-CODE(C$3:C47),C$3:C47),D46) -> 6 | E47: 6-180(850)-528 | I47: 850 | J47: 720 | K47: 528 | L47: 14106.117 | M47: 14878.42967 | N47: 14973.88404 | O47: 15747.28142 | P47: 17503.42496 | Q47: 18206.31627
C48: 0 | D48: =IF(C48<>0,LOOKUP(,-CODE(C$3:C48),C$3:C48),D47) -> 6 | E48: 6-180(900)-528 | I48: 900 | J48: 720 | K48: 528 | L48: 14599.46986 | M48: 15417.53565 | N48: 15518.6449 | O48: 16337.85966 | P48: 18198.04015 | Q48: 18942.57193
C49: 0 | D49: =IF(C49<>0,LOOKUP(,-CODE(C$3:C49),C$3:C49),D48) -> 6 | E49: 6-180(950)-528 | I49: 950 | J49: 720 | K49: 528 | L49: 15092.82273 | M49: 15956.64163 | N49: 16063.40577 | O49: 16928.4379 | P49: 18892.65533 | Q49: 19678.82759
C50: 0 | D50: =IF(C50<>0,LOOKUP(,-CODE(C$3:C50),C$3:C50),D49) -> 6 | E50: 6-180(1000)-528 | I50: 1000 | J50: 720 | K50: 528 | L50: 15586.17559 | M50: 16495.74761 | N50: 16608.16663 | O50: 17519.01614 | P50: 19587.27051 | Q50: 20415.08325
B51: 10/1 | C51: 7 | D51: =IF(C51<>0,LOOKUP(,-CODE(C$3:C51),C$3:C51),D50) -> 7 | E51: 7-180(600)-528 | F51: Тумба кухонная двухдверная с метабоксом,Н - 180 мм, полка ЛДСП | I51: 600 | J51: 720 | K51: 528 | L51: 8020.8925 | M51: 8564.439566 | N51: 8631.61954 | O51: 9175.930015 | P51: 10411.88886 | Q51: 10906.57776
C52: 0 | D52: =IF(C52<>0,LOOKUP(,-CODE(C$3:C52),C$3:C52),D51) -> 7 | E52: 7-180(650)-528 | I52: 650 | J52: 720 | K52: 528 | L52: 8509.930869 | M52: 9099.231054 | N52: 9172.065909 | O52: 9762.193763 | P52: 11102.18955 | Q52: 11638.51893
C53: 0 | D53: =IF(C53<>0,LOOKUP(,-CODE(C$3:C53),C$3:C53),D52) -> 7 | E53: 7-180(700)-528 | I53: 700 | J53: 720 | K53: 528 | L53: 8998.969238 | M53: 9634.022543 | N53: 9712.512278 | O53: 10348.45751 | P53: 11792.49024 | Q53: 12370.4601
C54: 0 | D54: =IF(C54<>0,LOOKUP(,-CODE(C$3:C54),C$3:C54),D53) -> 7 | E54: 7-180(750)-528 | I54: 750 | J54: 720 | K54: 528 | L54: 9488.007606 | M54: 10168.81403 | N54: 10252.95865 | O54: 10934.72126 | P54: 12482.79093 | Q54: 13102.40127
C55: 0 | D55: =IF(C55<>0,LOOKUP(,-CODE(C$3:C55),C$3:C55),D54) -> 7 | E55: 7-180(800)-528 | I55: 800 | J55: 720 | K55: 528 | L55: 9977.045975 | M55: 10703.60552 | N55: 10793.40501 | O55: 11520.98501 | P55: 13173.09162 | Q55: 13834.34244
C56: 0 | D56: =IF(C56<>0,LOOKUP(,-CODE(C$3:C56),C$3:C56),D55) -> 7 | E56: 7-180(850)-528 | I56: 850 | J56: 720 | K56: 528 | L56: 10466.08434 | M56: 11238.39701 | N56: 11333.85138 | O56: 12107.24876 | P56: 13863.39231 | Q56: 14566.28361
C57: 0 | D57: =IF(C57<>0,LOOKUP(,-CODE(C$3:C57),C$3:C57),D56) -> 7 | E57: 7-180(900)-528 | I57: 900 | J57: 720 | K57: 528 | L57: 10955.12271 | M57: 11773.1885 | N57: 11874.29775 | O57: 12693.51251 | P57: 14553.69299 | Q57: 15298.22478
C58: 0 | D58: =IF(C58<>0,LOOKUP(,-CODE(C$3:C58),C$3:C58),D57) -> 7 | E58: 7-180(950)-528 | I58: 950 | J58: 720 | K58: 528 | L58: 11444.16108 | M58: 12307.97999 | N58: 12414.74412 | O58: 13279.77626 | P58: 15243.99368 | Q58: 16030.16595
C59: 0 | D59: =IF(C59<>0,LOOKUP(,-CODE(C$3:C59),C$3:C59),D58) -> 7 | E59: 7-180(1000)-528 | I59: 1000 | J59: 720 | K59: 528 | L59: 11933.19945 | M59: 12842.77148 | N59: 12955.19049 | O59: 13866.04 | P59: 15934.29437 | Q59: 16762.10711
C60: 8 | D60: =IF(C60<>0,LOOKUP(,-CODE(C$3:C60),C$3:C60),D59) -> 8 | E60: 8-180(600)-528 | F60: Тумба кухонная двухдверная с леграбоксом,Н - 180 мм, полка ЛДСП | I60: 600 | J60: 720 | K60: 528 | L60: 9357.413805 | M60: 9900.96087 | N60: 9968.140845 | O60: 10512.45132 | P60: 11748.41017 | Q60: 12243.09907
C61: 0 | D61: =IF(C61<>0,LOOKUP(,-CODE(C$3:C61),C$3:C61),D60) -> 8 | E61: 8-180(650)-528 | I61: 650 | J61: 720 | K61: 528 | L61: 9846.137173 | M61: 10435.43736 | N61: 10508.27221 | O61: 11098.40007 | P61: 12438.39586 | Q61: 12974.72524
C62: 0 | D62: =IF(C62<>0,LOOKUP(,-CODE(C$3:C62),C$3:C62),D61) -> 8 | E62: 8-180(700)-528 | I62: 700 | J62: 720 | K62: 528 | L62: 10334.86054 | M62: 10969.91385 | N62: 11048.40358 | O62: 11684.34882 | P62: 13128.38154 | Q62: 13706.35141
C63: 0 | D63: =IF(C63<>0,LOOKUP(,-CODE(C$3:C63),C$3:C63),D62) -> 8 | E63: 8-180(750)-528 | I63: 750 | J63: 720 | K63: 528 | L63: 10823.58391 | M63: 11504.39034 | N63: 11588.53495 | O63: 12270.29757 | P63: 13818.36723 | Q63: 14437.97757
C64: 0 | D64: =IF(C64<>0,LOOKUP(,-CODE(C$3:C64),C$3:C64),D63) -> 8 | E64: 8-180(800)-528 | I64: 800 | J64: 720 | K64: 528 | L64: 11312.30728 | M64: 12038.86683 | N64: 12128.66632 | O64: 12856.24631 | P64: 14508.35292 | Q64: 15169.60374
C65: 0 | D65: =IF(C65<>0,LOOKUP(,-CODE(C$3:C65),C$3:C65),D64) -> 8 | E65: 8-180(850)-528 | I65: 850 | J65: 720 | K65: 528 | L65: 11801.03065 | M65: 12573.34331 | N65: 12668.79769 | O65: 13442.19506 | P65: 15198.33861 | Q65: 15901.22991
C66: 0 | D66: =IF(C66<>0,LOOKUP(,-CODE(C$3:C66),C$3:C66),D65) -> 8 | E66: 8-180(900)-528 | I66: 900 | J66: 720 | K66: 528 | L66: 12289.75402 | M66: 13107.8198 | N66: 13208.92906 | O66: 14028.14381 | P66: 15888.3243 | Q66: 16632.85608
C67: 0 | D67: =IF(C67<>0,LOOKUP(,-CODE(C$3:C67),C$3:C67),D66) -> 8 | E67: 8-180(950)-528 | I67: 950 | J67: 720 | K67: 528 | L67: 12778.47739 | M67: 13642.29629 | N67: 13749.06043 | O67: 14614.09256 | P67: 16578.30999 | Q67: 17364.48225
C68: 0 | D68: =IF(C68<>0,LOOKUP(,-CODE(C$3:C68),C$3:C68),D67) -> 8 | E68: 8-180(1000)-528 | I68: 1000 | J68: 720 | K68: 528 | L68: 13267.20075 | M68: 14176.77278 | N68: 14289.19179 | O68: 15200.04131 | P68: 17268.29568 | Q68: 18096.10842
B69: 12 | C69: 9 | D69: =IF(C69<>0,LOOKUP(,-CODE(C$3:C69),C$3:C69),D68) -> 9 | E69: 9(300)-528 | F69: Тумба кухонная однодверная со стеклом, полка ЛДСП | I69: 300 | J69: 720 | K69: 528 | L69: 3866.634053 | M69: 4139.9328 | N69: 4140.699416 | O69: 4413.998163 | P69: 4936.44724 | Q69: 5184.830953
C70: 0 | D70: =IF(C70<>0,LOOKUP(,-CODE(C$3:C70),C$3:C70),D69) -> 9 | E70: 9(350)-528 | I70: 350 | J70: 720 | K70: 528 | L70: 4338.737136 | M70: 4658.045772 | N70: 4658.941449 | O70: 4978.250085 | P70: 5588.653552 | Q70: 5878.852705
C71: 0 | D71: =IF(C71<>0,LOOKUP(,-CODE(C$3:C71),C$3:C71),D70) -> 9 | E71: 9(400)-528 | I71: 400 | J71: 720 | K71: 528 | L71: 4810.840218 | M71: 5176.158744 | N71: 5177.183481 | O71: 5542.502007 | P71: 6240.859864 | Q71: 6572.874457
C72: 0 | D72: =IF(C72<>0,LOOKUP(,-CODE(C$3:C72),C$3:C72),D71) -> 9 | E72: 9(450)-528 | I72: 450 | J72: 720 | K72: 528 | L72: 5282.9433 | M72: 5694.271716 | N72: 5695.425513 | O72: 6106.753929 | P72: 6893.066176 | Q72: 7266.896209
C73: 0 | D73: =IF(C73<>0,LOOKUP(,-CODE(C$3:C73),C$3:C73),D72) -> 9 | E73: 9(500)-528 | I73: 500 | J73: 720 | K73: 528 | L73: 5755.046382 | M73: 6212.384688 | N73: 6213.667545 | O73: 6671.005851 | P73: 7545.272488 | Q73: 7960.917961
C74: 0 | D74: =IF(C74<>0,LOOKUP(,-CODE(C$3:C74),C$3:C74),D73) -> 9 | E74: 9(550)-528 | I74: 550 | J74: 720 | K74: 528 | L74: 6227.149464 | M74: 6730.49766 | N74: 6731.909577 | O74: 7235.257773 | P74: 8197.4788 | Q74: 8654.939713
C75: 0 | D75: =IF(C75<>0,LOOKUP(,-CODE(C$3:C75),C$3:C75),D74) -> 9 | E75: 9(600)-528 | I75: 600 | J75: 720 | K75: 528 | L75: 6699.252546 | M75: 7248.610632 | N75: 7250.151609 | O75: 7799.509695 | P75: 8849.685112 | Q75: 9348.961465
B76: 13 | C76: 10 | D76: =IF(C76<>0,LOOKUP(,-CODE(C$3:C76),C$3:C76),D75) -> 10 | E76: 10(600)-528 | F76: Тумба кухонная двухдверная со стеклом, полка ЛДСП | I76: 600 | J76: 720 | K76: 528 | L76: 6932.318696 | M76: 7478.916189 | N76: 7480.449422 | O76: 8027.046915 | P76: 9071.945068 | Q76: 9568.712495
C77: 0 | D77: =IF(C77<>0,LOOKUP(,-CODE(C$3:C77),C$3:C77),D76) -> 10 | E77: 10(650)-528 | I77: 650 | J77: 720 | K77: 528 | L77: 7404.421778 | M77: 7997.029161 | N77: 7998.691454 | O77: 8591.298837 | P77: 9724.15138 | Q77: 10262.73425
C78: 0 | D78: =IF(C78<>0,LOOKUP(,-CODE(C$3:C78),C$3:C78),D77) -> 10 | E78: 10(700)-528 | I78: 700 | J78: 720 | K78: 528 | L78: 7876.52486 | M78: 8515.142133 | N78: 8516.933486 | O78: 9155.550759 | P78: 10376.35769 | Q78: 10956.756
C79: 0 | D79: =IF(C79<>0,LOOKUP(,-CODE(C$3:C79),C$3:C79),D78) -> 10 | E79: 10(750)-528 | I79: 750 | J79: 720 | K79: 528 | L79: 8348.627942 | M79: 9033.255105 | N79: 9035.175518 | O79: 9719.802681 | P79: 11028.564 | Q79: 11650.77775
C80: 0 | D80: =IF(C80<>0,LOOKUP(,-CODE(C$3:C80),C$3:C80),D79) -> 10 | E80: 10(800)-528 | I80: 800 | J80: 720 | K80: 528 | L80: 8820.731024 | M80: 9551.368077 | N80: 9553.41755 | O80: 10284.0546 | P80: 11680.77032 | Q80: 12344.7995
C81: 0 | D81: =IF(C81<>0,LOOKUP(,-CODE(C$3:C81),C$3:C81),D80) -> 10 | E81: 10(850)-528 | I81: 850 | J81: 720 | K81: 528 | L81: 9292.834106 | M81: 10069.48105 | N81: 10071.65958 | O81: 10848.30653 | P81: 12332.97663 | Q81: 13038.82126
C82: 0 | D82: =IF(C82<>0,LOOKUP(,-CODE(C$3:C82),C$3:C82),D81) -> 10 | E82: 10(900)-528 | I82: 900 | J82: 720 | K82: 528 | L82: 9764.937188 | M82: 10587.59402 | N82: 10589.90161 | O82: 11412.55845 | P82: 12985.18294 | Q82: 13732.84301
C83: 0 | D83: =IF(C83<>0,LOOKUP(,-CODE(C$3:C83),C$3:C83),D82) -> 10 | E83: 10(950)-528 | I83: 950 | J83: 720 | K83: 528 | L83: 10237.04027 | M83: 11105.70699 | N83: 11108.14365 | O83: 11976.81037 | P83: 13637.38925 | Q83: 14426.86476
C84: 0 | D84: =IF(C84<>0,LOOKUP(,-CODE(C$3:C84),C$3:C84),D83) -> 10 | E84: 10(1000)-528 | I84: 1000 | J84: 720 | K84: 528 | L84: 10709.14335 | M84: 11623.81997 | N84: 11626.38568 | O84: 12541.06229 | P84: 14289.59556 | Q84: 15120.88651
B85: 14 | C85: 11 | D85: =IF(C85<>0,LOOKUP(,-CODE(C$3:C85),C$3:C85),D84) -> 11 | E85: 11(300)-528 | F85: Тумба кухонная торцевая (скошенная) | I85: 300 | J85: 720 | K85: 528 | L85: 6946.524095 | M85: 7550.246126 | N85: 7624.863455 | O85: 8229.43341 | P85: 9602.22269 | Q85: 10151.67757
C86: 0 | D86: =IF(C86<>0,LOOKUP(,-CODE(C$3:C86),C$3:C86),D85) -> 11 | E86: 11(350)-528 | I86: 350 | J86: 720 | K86: 528 | L86: 7602.378245 | M86: 8270.423779 | N86: 8352.991205 | O86: 9021.975005 | P86: 10541.02798 | Q86: 11149.02448
C87: 0 | D87: =IF(C87<>0,LOOKUP(,-CODE(C$3:C87),C$3:C87),D86) -> 11 | E87: 11(400)-528 | I87: 400 | J87: 720 | K87: 528 | L87: 8245.842164 | M87: 8978.211202 | N87: 9068.728724 | O87: 9802.12637 | P87: 11467.44305 | Q87: 12133.98116
B88: 15 | C88: 12 | D88: =IF(C88<>0,LOOKUP(,-CODE(C$3:C88),C$3:C88),D87) -> 12 | E88: 12(350)-528 | F88: Тумба кухонная торцевая (радиусная) | I88: 350 | J88: 720 | K88: 528 | L88: 15327.15789 | M88: 15576.30093 | N88: 15607.09389 | O88: 15856.58685 | P88: 16423.10733 | Q88: 16649.85549
B89: 16 | C89: 13 | D89: =IF(C89<>0,LOOKUP(,-CODE(C$3:C89),C$3:C89),D88) -> 13 | E89: 13(300)-528 | F89: Тумба кухонная торцевая (скошенная) со стеклом, полка ЛДСП | I89: 300 | J89: 720 | K89: 528 | L89: 6900.860249 | M89: 7255.937244 | N89: 7256.933252 | O89: 7612.010247 | P89: 8290.789972 | Q89: 8613.496693
C90: 0 | D90: =IF(C90<>0,LOOKUP(,-CODE(C$3:C90),C$3:C90),D89) -> 13 | E90: 13(350)-528 | I90: 350 | J90: 720 | K90: 528 | L90: 7576.096939 | M90: 7995.587779 | N90: 7996.764472 | O90: 8416.255312 | P90: 9218.171183 | Q90: 9599.419521
C91: 0 | D91: =IF(C91<>0,LOOKUP(,-CODE(C$3:C91),C$3:C91),D90) -> 13 | E91: 13(400)-528 | I91: 400 | J91: 720 | K91: 528 | L91: 8213.943398 | M91: 8697.848084 | N91: 8699.205461 | O91: 9183.110147 | P91: 10108.16216 | Q91: 10547.95212
B92: 17 | C92: 14 | D92: =IF(C92<>0,LOOKUP(,-CODE(C$3:C92),C$3:C92),D91) -> 14 | E92: 14(350)-528 | F92: Тумба кухонная торцевая (радиусная) со стеклом, полка ЛДСП | I92: 350 | J92: 720 | K92: 528 | L92: 11754.86489 | M92: 12004.00793 | N92: 12034.80089 | O92: 12284.29385 | P92: 12850.81433 | Q92: 13077.56249
B93: 18 | C93: 15 | D93: =IF(C93<>0,LOOKUP(,-CODE(C$3:C93),C$3:C93),D92) -> 15 | E93: 15(300)-560 | F93: Тумба кухонная открытая торцевая (радиусная) | I93: 300 | J93: 720 | K93: 560 | L93: 1000.810307 | M93: 1000.810307 | N93: 1000.810307 | O93: 1000.810307 | P93: 1000.810307 | Q93: 1000.810307
B94: 18 | C94: 16 | D94: =IF(C94<>0,LOOKUP(,-CODE(C$3:C94),C$3:C94),D93) -> 16 | E94: 16(300)-560 | F94: Тумба кухонная открытая торцевая (скошенная) | I94: 300 | J94: 720 | K94: 560 | L94: 1000.810307 | M94: 1000.810307 | N94: 1000.810307 | O94: 1000.810307 | P94: 1000.810307 | Q94: 1000.810307
C95: 0 | D95: =IF(C95<>0,LOOKUP(,-CODE(C$3:C95),C$3:C95),D94) -> 16 | E95: 16(350)-560 | I95: 350 | J95: 720 | K95: 560 | L95: 1087.704041 | M95: 1087.704041 | N95: 1087.704041 | O95: 1087.704041 | P95: 1087.704041 | Q95: 1087.704041
C96: 0 | D96: =IF(C96<>0,LOOKUP(,-CODE(C$3:C96),C$3:C96),D95) -> 16 | E96: 16(400)-560 | I96: 400 | J96: 720 | K96: 560 | L96: 1174.597774 | M96: 1174.597774 | N96: 1174.597774 | O96: 1174.597774 | P96: 1174.597774 | Q96: 1174.597774
B97: 19 | C97: 17 | D97: =IF(C97<>0,LOOKUP(,-CODE(C$3:C97),C$3:C97),D96) -> 17 | E97: 17(300)-528 | F97: Тумба кухонная открытая | I97: 300 | J97: 720 | K97: 528 | L97: 1053.726332 | M97: 1053.726332 | N97: 1053.726332 | O97: 1053.726332 | P97: 1053.726332 | Q97: 1053.726332
C98: 0 | D98: =IF(C98<>0,LOOKUP(,-CODE(C$3:C98),C$3:C98),D97) -> 17 | E98: 17(350)-528 | I98: 350 | J98: 720 | K98: 528 | L98: 1102.418941 | M98: 1102.418941 | N98: 1102.418941 | O98: 1102.418941 | P98: 1102.418941 | Q98: 1102.418941
C99: 0 | D99: =IF(C99<>0,LOOKUP(,-CODE(C$3:C99),C$3:C99),D98) -> 17 | E99: 17(400)-528 | I99: 400 | J99: 720 | K99: 528 | L99: 1151.11155 | M99: 1151.11155 | N99: 1151.11155 | O99: 1151.11155 | P99: 1151.11155 | Q99: 1151.11155
C100: 0 | D100: =IF(C100<>0,LOOKUP(,-CODE(C$3:C100),C$3:C100),D99) -> 17 | E100: 17(450)-528 | I100: 450 | J100: 720 | K100: 528 | L100: 1199.804158 | M100: 1199.804158 | N100: 1199.804158 | O100: 1199.804158 | P100: 1199.804158 | Q100: 1199.804158
C101: 0 | D101: =IF(C101<>0,LOOKUP(,-CODE(C$3:C101),C$3:C101),D100) -> 17 | E101: 17(500)-528 | I101: 500 | J101: 720 | K101: 528 | L101: 1248.496767 | M101: 1248.496767 | N101: 1248.496767 | O101: 1248.496767 | P101: 1248.496767 | Q101: 1248.496767
C102: 0 | D102: =IF(C102<>0,LOOKUP(,-CODE(C$3:C102),C$3:C102),D101) -> 17 | E102: 17(550)-528 | I102: 550 | J102: 720 | K102: 528 | L102: 1297.189376 | M102: 1297.189376 | N102: 1297.189376 | O102: 1297.189376 | P102: 1297.189376 | Q102: 1297.189376
C103: 0 | D103: =IF(C103<>0,LOOKUP(,-CODE(C$3:C103),C$3:C103),D102) -> 17 | E103: 17(600)-528 | I103: 600 | J103: 720 | K103: 528 | L103: 1345.881984 | M103: 1345.881984 | N103: 1345.881984 | O103: 1345.881984 | P103: 1345.881984 | Q103: 1345.881984
C104: 0 | D104: =IF(C104<>0,LOOKUP(,-CODE(C$3:C104),C$3:C104),D103) -> 17 | E104: 17(650)-528 | I104: 650 | J104: 720 | K104: 528 | L104: 1394.574593 | M104: 1394.574593 | N104: 1394.574593 | O104: 1394.574593 | P104: 1394.574593 | Q104: 1394.574593
C105: 0 | D105: =IF(C105<>0,LOOKUP(,-CODE(C$3:C105),C$3:C105),D104) -> 17 | E105: 17(700)-528 | I105: 700 | J105: 720 | K105: 528 | L105: 1443.267202 | M105: 1443.267202 | N105: 1443.267202 | O105: 1443.267202 | P105: 1443.267202 | Q105: 1443.267202
C106: 0 | D106: =IF(C106<>0,LOOKUP(,-CODE(C$3:C106),C$3:C106),D105) -> 17 | E106: 17(750)-528 | I106: 750 | J106: 720 | K106: 528 | L106: 1491.95981 | M106: 1491.95981 | N106: 1491.95981 | O106: 1491.95981 | P106: 1491.95981 | Q106: 1491.95981
C107: 0 | D107: =IF(C107<>0,LOOKUP(,-CODE(C$3:C107),C$3:C107),D106) -> 17 | E107: 17(800)-528 | I107: 800 | J107: 720 | K107: 528 | L107: 1540.652419 | M107: 1540.652419 | N107: 1540.652419 | O107: 1540.652419 | P107: 1540.652419 | Q107: 1540.652419
C108: 0 | D108: =IF(C108<>0,LOOKUP(,-CODE(C$3:C108),C$3:C108),D107) -> 17 | E108: 17(850)-528 | I108: 850 | J108: 720 | K108: 528 | L108: 1589.345028 | M108: 1589.345028 | N108: 1589.345028 | O108: 1589.345028 | P108: 1589.345028 | Q108: 1589.345028
C109: 0 | D109: =IF(C109<>0,LOOKUP(,-CODE(C$3:C109),C$3:C109),D108) -> 17 | E109: 17(900)-528 | I109: 900 | J109: 720 | K109: 528 | L109: 1638.037637 | M109: 1638.037637 | N109: 1638.037637 | O109: 1638.037637 | P109: 1638.037637 | Q109: 1638.037637
B110: 20 | C110: 18 | D110: =IF(C110<>0,LOOKUP(,-CODE(C$3:C110),C$3:C110),D109) -> 18 | E110: 18(300)-528 | F110: Тумба кухонная с метабоксом и нишей | I110: 300 | J110: 720 | K110: 528 | L110: 3195.688141 | M110: 3331.574908 | N110: 3348.369901 | O110: 3484.44752 | P110: 3793.437232 | Q110: 3917.109457
C111: 0 | D111: =IF(C111<>0,LOOKUP(,-CODE(C$3:C111),C$3:C111),D110) -> 18 | E111: 18(350)-528 | I111: 350 | J111: 720 | K111: 528 | L111: 3484.77711 | M111: 3643.540437 | N111: 3663.16287 | O111: 3822.149179 | P111: 4183.157361 | Q111: 4327.649826
C112: 0 | D112: =IF(C112<>0,LOOKUP(,-CODE(C$3:C112),C$3:C112),D111) -> 18 | E112: 18(400)-528 | I112: 400 | J112: 720 | K112: 528 | L112: 3773.866079 | M112: 3955.505965 | N112: 3977.955839 | O112: 4159.850837 | P112: 4572.877489 | Q112: 4738.190195
C113: 0 | D113: =IF(C113<>0,LOOKUP(,-CODE(C$3:C113),C$3:C113),D112) -> 18 | E113: 18(450)-528 | I113: 450 | J113: 720 | K113: 528 | L113: 4062.955048 | M113: 4267.471494 | N113: 4292.748808 | O113: 4497.552496 | P113: 4962.597618 | Q113: 5148.730564
C114: 0 | D114: =IF(C114<>0,LOOKUP(,-CODE(C$3:C114),C$3:C114),D113) -> 18 | E114: 18(500)-528 | I114: 500 | J114: 720 | K114: 528 | L114: 4352.044016 | M114: 4579.437023 | N114: 4607.541776 | O114: 4835.254155 | P114: 5352.317747 | Q114: 5559.270932
C115: 0 | D115: =IF(C115<>0,LOOKUP(,-CODE(C$3:C115),C$3:C115),D114) -> 18 | E115: 18(550)-528 | I115: 550 | J115: 720 | K115: 528 | L115: 4641.132985 | M115: 4891.402551 | N115: 4922.334745 | O115: 5172.955814 | P115: 5742.037875 | Q115: 5969.811301
C116: 0 | D116: =IF(C116<>0,LOOKUP(,-CODE(C$3:C116),C$3:C116),D115) -> 18 | E116: 18(600)-528 | I116: 600 | J116: 720 | K116: 528 | L116: 4930.221954 | M116: 5203.36808 | N116: 5237.127714 | O116: 5510.657472 | P116: 6131.758004 | Q116: 6380.35167
C117: 0 | D117: =IF(C117<>0,LOOKUP(,-CODE(C$3:C117),C$3:C117),D116) -> 18 | E117: 18(650)-528 | I117: 650 | J117: 720 | K117: 528 | L117: 5219.310922 | M117: 5515.333609 | N117: 5551.920682 | O117: 5848.359131 | P117: 6521.478133 | Q117: 6790.892038
C118: 0 | D118: =IF(C118<>0,LOOKUP(,-CODE(C$3:C118),C$3:C118),D117) -> 18 | E118: 18(700)-528 | I118: 700 | J118: 720 | K118: 528 | L118: 5508.399891 | M118: 5827.299137 | N118: 5866.713651 | O118: 6186.06079 | P118: 6911.198261 | Q118: 7201.432407
C119: 0 | D119: =IF(C119<>0,LOOKUP(,-CODE(C$3:C119),C$3:C119),D118) -> 18 | E119: 18(750)-528 | I119: 750 | J119: 720 | K119: 528 | L119: 5797.48886 | M119: 6139.264666 | N119: 6181.50662 | O119: 6523.762448 | P119: 7300.91839 | Q119: 7611.972776
C120: 0 | D120: =IF(C120<>0,LOOKUP(,-CODE(C$3:C120),C$3:C120),D119) -> 18 | E120: 18(800)-528 | I120: 800 | J120: 720 | K120: 528 | L120: 6086.577828 | M120: 6451.230195 | N120: 6496.299588 | O120: 6861.464107 | P120: 7690.638519 | Q120: 8022.513144
C121: 0 | D121: =IF(C121<>0,LOOKUP(,-CODE(C$3:C121),C$3:C121),D120) -> 18 | E121: 18(850)-528 | I121: 850 | J121: 720 | K121: 528 | L121: 6375.666797 | M121: 6763.195724 | N121: 6811.092557 | O121: 7199.165766 | P121: 8080.358648 | Q121: 8433.053513
C122: 0 | D122: =IF(C122<>0,LOOKUP(,-CODE(C$3:C122),C$3:C122),D121) -> 18 | E122: 18(900)-528 | I122: 900 | J122: 720 | K122: 528 | L122: 6664.755766 | M122: 7075.161252 | N122: 7125.885526 | O122: 7536.867424 | P122: 8470.078776 | Q122: 8843.593882
C123: 19 | D123: =IF(C123<>0,LOOKUP(,-CODE(C$3:C123),C$3:C123),D122) -> 19 | E123: 19(300)-528 | F123: Тумба кухонная с леграбоксом и нишей | I123: 300 | J123: 720 | K123: 528 | L123: 4924.028978 | M123: 5059.915744 | N123: 5076.710738 | O123: 5212.788356 | P123: 5521.778068 | Q123: 5645.450294
C124: 0 | D124: =IF(C124<>0,LOOKUP(,-CODE(C$3:C124),C$3:C124),D123) -> 19 | E124: 19(350)-528 | I124: 350 | J124: 720 | K124: 528 | L124: 5212.347946 | M124: 5371.111273 | N124: 5390.733706 | O124: 5549.720015 | P124: 5910.728197 | Q124: 6055.220662
C125: 0 | D125: =IF(C125<>0,LOOKUP(,-CODE(C$3:C125),C$3:C125),D124) -> 19 | E125: 19(400)-528 | I125: 400 | J125: 720 | K125: 528 | L125: 5500.666915 | M125: 5682.306802 | N125: 5704.756675 | O125: 5886.651674 | P125: 6299.678326 | Q125: 6464.991031
C126: 0 | D126: =IF(C126<>0,LOOKUP(,-CODE(C$3:C126),C$3:C126),D125) -> 19 | E126: 19(450)-528 | I126: 450 | J126: 720 | K126: 528 | L126: 5788.985884 | M126: 5993.50233 | N126: 6018.779644 | O126: 6223.583332 | P126: 6688.628454 | Q126: 6874.7614
C127: 0 | D127: =IF(C127<>0,LOOKUP(,-CODE(C$3:C127),C$3:C127),D126) -> 19 | E127: 19(500)-528 | I127: 500 | J127: 720 | K127: 528 | L127: 6077.304853 | M127: 6304.697859 | N127: 6332.802613 | O127: 6560.514991 | P127: 7077.578583 | Q127: 7284.531769
C128: 0 | D128: =IF(C128<>0,LOOKUP(,-CODE(C$3:C128),C$3:C128),D127) -> 19 | E128: 19(550)-528 | I128: 550 | J128: 720 | K128: 528 | L128: 6365.623821 | M128: 6615.893388 | N128: 6646.825581 | O128: 6897.44665 | P128: 7466.528712 | Q128: 7694.302137
C129: 0 | D129: =IF(C129<>0,LOOKUP(,-CODE(C$3:C129),C$3:C129),D128) -> 19 | E129: 19(600)-528 | I129: 600 | J129: 720 | K129: 528 | L129: 6653.94279 | M129: 6927.088916 | N129: 6960.84855 | O129: 7234.378309 | P129: 7855.47884 | Q129: 8104.072506
C130: 0 | D130: =IF(C130<>0,LOOKUP(,-CODE(C$3:C130),C$3:C130),D129) -> 19 | E130: 19(650)-528 | I130: 650 | J130: 720 | K130: 528 | L130: 6942.261759 | M130: 7238.284445 | N130: 7274.871519 | O130: 7571.309967 | P130: 8244.428969 | Q130: 8513.842875
C131: 0 | D131: =IF(C131<>0,LOOKUP(,-CODE(C$3:C131),C$3:C131),D130) -> 19 | E131: 19(700)-528 | I131: 700 | J131: 720 | K131: 528 | L131: 7230.580727 | M131: 7549.479974 | N131: 7588.894487 | O131: 7908.241626 | P131: 8633.379098 | Q131: 8923.613243
C132: 0 | D132: =IF(C132<>0,LOOKUP(,-CODE(C$3:C132),C$3:C132),D131) -> 19 | E132: 19(750)-528 | I132: 750 | J132: 720 | K132: 528 | L132: 7518.899696 | M132: 7860.675502 | N132: 7902.917456 | O132: 8245.173285 | P132: 9022.329226 | Q132: 9333.383612
C133: 0 | D133: =IF(C133<>0,LOOKUP(,-CODE(C$3:C133),C$3:C133),D132) -> 19 | E133: 19(800)-528 | I133: 800 | J133: 720 | K133: 528 | L133: 7807.218665 | M133: 8171.871031 | N133: 8216.940425 | O133: 8582.104943 | P133: 9411.279355 | Q133: 9743.153981
C134: 0 | D134: =IF(C134<>0,LOOKUP(,-CODE(C$3:C134),C$3:C134),D133) -> 19 | E134: 19(850)-528 | I134: 850 | J134: 720 | K134: 528 | L134: 8095.537633 | M134: 8483.06656 | N134: 8530.963393 | O134: 8919.036602 | P134: 9800.229484 | Q134: 10152.92435
C135: 0 | D135: =IF(C135<>0,LOOKUP(,-CODE(C$3:C135),C$3:C135),D134) -> 19 | E135: 19(900)-528 | I135: 900 | J135: 720 | K135: 528 | L135: 8383.856602 | M135: 8794.262089 | N135: 8844.986362 | O135: 9255.968261 | P135: 10189.17961 | Q135: 10562.69472
B136: 22 | C136: 20 | D136: =IF(C136<>0,LOOKUP(,-CODE(C$3:C136),C$3:C136),D135) -> 20 | E136: 20(300)-528 | F136: Тумба кухонная с двумя метабоксами | I136: 300 | J136: 720 | K136: 528 | L136: 5179.961119 | M136: 5451.734652 | N136: 5485.324639 | O136: 5757.479876 | P136: 6375.4593 | Q136: 6622.803751
C137: 0 | D137: =IF(C137<>0,LOOKUP(,-CODE(C$3:C137),C$3:C137),D136) -> 20 | E137: 20(350)-528 | I137: 350 | J137: 720 | K137: 528 | L137: 5682.343981 | M137: 5999.870634 | N137: 6039.115501 | O137: 6357.088118 | P137: 7079.104482 | Q137: 7368.089413
C138: 0 | D138: =IF(C138<>0,LOOKUP(,-CODE(C$3:C138),C$3:C138),D137) -> 20 | E138: 20(400)-528 | I138: 400 | J138: 720 | K138: 528 | L138: 6184.726843 | M138: 6548.006616 | N138: 6592.906363 | O138: 6956.69636 | P138: 7782.749664 | Q138: 8113.375075
C139: 0 | D139: =IF(C139<>0,LOOKUP(,-CODE(C$3:C139),C$3:C139),D138) -> 20 | E139: 20(450)-528 | I139: 450 | J139: 720 | K139: 528 | L139: 6687.109705 | M139: 7096.142598 | N139: 7146.697225 | O139: 7556.304602 | P139: 8486.394846 | Q139: 8858.660737
C140: 0 | D140: =IF(C140<>0,LOOKUP(,-CODE(C$3:C140),C$3:C140),D139) -> 20 | E140: 20(500)-528 | I140: 500 | J140: 720 | K140: 528 | L140: 7189.492567 | M140: 7644.27858 | N140: 7700.488087 | O140: 8155.912844 | P140: 9190.040028 | Q140: 9603.946399
C141: 0 | D141: =IF(C141<>0,LOOKUP(,-CODE(C$3:C141),C$3:C141),D140) -> 20 | E141: 20(550)-528 | I141: 550 | J141: 720 | K141: 528 | L141: 7691.875429 | M141: 8192.414562 | N141: 8254.278949 | O141: 8755.521086 | P141: 9893.68521 | Q141: 10349.23206
C142: 0 | D142: =IF(C142<>0,LOOKUP(,-CODE(C$3:C142),C$3:C142),D141) -> 20 | E142: 20(600)-528 | I142: 600 | J142: 720 | K142: 528 | L142: 8194.258291 | M142: 8740.550544 | N142: 8808.069811 | O142: 9355.129328 | P142: 10597.33039 | Q142: 11094.51772
C143: 0 | D143: =IF(C143<>0,LOOKUP(,-CODE(C$3:C143),C$3:C143),D142) -> 20 | E143: 20(650)-528 | I143: 650 | J143: 720 | K143: 528 | L143: 8696.641153 | M143: 9288.686526 | N143: 9361.860673 | O143: 9954.73757 | P143: 11300.97557 | Q143: 11839.80339
C144: 0 | D144: =IF(C144<>0,LOOKUP(,-CODE(C$3:C144),C$3:C144),D143) -> 20 | E144: 20(700)-528 | I144: 700 | J144: 720 | K144: 528 | L144: 9199.024015 | M144: 9836.822508 | N144: 9915.651535 | O144: 10554.34581 | P144: 12004.62076 | Q144: 12585.08905
C145: 0 | D145: =IF(C145<>0,LOOKUP(,-CODE(C$3:C145),C$3:C145),D144) -> 20 | E145: 20(750)-528 | I145: 750 | J145: 720 | K145: 528 | L145: 9701.406877 | M145: 10384.95849 | N145: 10469.4424 | O145: 11153.95405 | P145: 12708.26594 | Q145: 13330.37471
C146: 0 | D146: =IF(C146<>0,LOOKUP(,-CODE(C$3:C146),C$3:C146),D145) -> 20 | E146: 20(800)-528 | I146: 800 | J146: 720 | K146: 528 | L146: 10203.78974 | M146: 10933.09447 | N146: 11023.23326 | O146: 11753.5623 | P146: 13411.91112 | Q146: 14075.66037
C147: 0 | D147: =IF(C147<>0,LOOKUP(,-CODE(C$3:C147),C$3:C147),D146) -> 20 | E147: 20(850)-528 | I147: 850 | J147: 720 | K147: 528 | L147: 10706.1726 | M147: 11481.23045 | N147: 11577.02412 | O147: 12353.17054 | P147: 14115.5563 | Q147: 14820.94603
C148: 0 | D148: =IF(C148<>0,LOOKUP(,-CODE(C$3:C148),C$3:C148),D147) -> 20 | E148: 20(900)-528 | I148: 900 | J148: 720 | K148: 528 | L148: 11208.55546 | M148: 12029.36644 | N148: 12130.81498 | O148: 12952.77878 | P148: 14819.20148 | Q148: 15566.2317
B149: 22В | C149: 21 | D149: =IF(C149<>0,LOOKUP(,-CODE(C$3:C149),C$3:C149),D148) -> 21 | E149: 21(450)-528 | F149: Тумба кухонная с двумя метабоксами под варочную поверхность | I149: 450 | J149: 720 | K149: 528 | L149: 6669.064053 | M149: 7078.096946 | N149: 7128.651573 | O149: 7538.25895 | P149: 8468.349194 | Q149: 8840.615085
C150: 0 | D150: =IF(C150<>0,LOOKUP(,-CODE(C$3:C150),C$3:C150),D149) -> 21 | E150: 21(600)-528 | I150: 600 | J150: 720 | K150: 528 | L150: 8165.9409 | M150: 8712.233153 | N150: 8779.75242 | O150: 9326.811937 | P150: 10569.013 | Q150: 11066.20033
C151: 0 | D151: =IF(C151<>0,LOOKUP(,-CODE(C$3:C151),C$3:C151),D150) -> 21 | E151: 21(900)-528 | I151: 900 | J151: 720 | K151: 528 | L151: 11159.69459 | M151: 11980.50557 | N151: 12081.95411 | O151: 12903.91791 | P151: 14770.34061 | Q151: 15517.37083
B152: 23 | C152: 22 | D152: =IF(C152<>0,LOOKUP(,-CODE(C$3:C152),C$3:C152),D151) -> 22 | E152: 22(300)-528 | F152: Тумба кухонная с двумя леграбоксами | I152: 300 | J152: 720 | K152: 528 | L152: 8636.642792 | M152: 8908.416324 | N152: 8942.006312 | O152: 9214.161549 | P152: 9832.140972 | Q152: 10079.48542
C153: 0 | D153: =IF(C153<>0,LOOKUP(,-CODE(C$3:C153),C$3:C153),D152) -> 22 | E153: 22(350)-528 | I153: 350 | J153: 720 | K153: 528 | L153: 9137.485654 | M153: 9455.012306 | N153: 9494.257174 | O153: 9812.229791 | P153: 10534.24615 | Q153: 10823.23109
C154: 0 | D154: =IF(C154<>0,LOOKUP(,-CODE(C$3:C154),C$3:C154),D153) -> 22 | E154: 22(400)-528 | I154: 400 | J154: 720 | K154: 528 | L154: 9638.328516 | M154: 10001.60829 | N154: 10046.50804 | O154: 10410.29803 | P154: 11236.35134 | Q154: 11566.97675
C155: 0 | D155: =IF(C155<>0,LOOKUP(,-CODE(C$3:C155),C$3:C155),D154) -> 22 | E155: 22(450)-528 | I155: 450 | J155: 720 | K155: 528 | L155: 10139.17138 | M155: 10548.20427 | N155: 10598.7589 | O155: 11008.36627 | P155: 11938.45652 | Q155: 12310.72241
C156: 0 | D156: =IF(C156<>0,LOOKUP(,-CODE(C$3:C156),C$3:C156),D155) -> 22 | E156: 22(500)-528 | I156: 500 | J156: 720 | K156: 528 | L156: 10640.01424 | M156: 11094.80025 | N156: 11151.00976 | O156: 11606.43452 | P156: 12640.5617 | Q156: 13054.46807
C157: 0 | D157: =IF(C157<>0,LOOKUP(,-CODE(C$3:C157),C$3:C157),D156) -> 22 | E157: 22(550)-528 | I157: 550 | J157: 720 | K157: 528 | L157: 11140.8571 | M157: 11641.39623 | N157: 11703.26062 | O157: 12204.50276 | P157: 13342.66688 | Q157: 13798.21373
C158: 0 | D158: =IF(C158<>0,LOOKUP(,-CODE(C$3:C158),C$3:C158),D157) -> 22 | E158: 22(600)-528 | I158: 600 | J158: 720 | K158: 528 | L158: 11641.69996 | M158: 12187.99222 | N158: 12255.51148 | O158: 12802.571 | P158: 14044.77206 | Q158: 14541.9594
C159: 0 | D159: =IF(C159<>0,LOOKUP(,-CODE(C$3:C159),C$3:C159),D158) -> 22 | E159: 22(650)-528 | I159: 650 | J159: 720 | K159: 528 | L159: 12142.54283 | M159: 12734.5882 | N159: 12807.76235 | O159: 13400.63924 | P159: 14746.87725 | Q159: 15285.70506
C160: 0 | D160: =IF(C160<>0,LOOKUP(,-CODE(C$3:C160),C$3:C160),D159) -> 22 | E160: 22(700)-528 | I160: 700 | J160: 720 | K160: 528 | L160: 12643.38569 | M160: 13281.18418 | N160: 13360.01321 | O160: 13998.70749 | P160: 15448.98243 | Q160: 16029.45072
C161: 0 | D161: =IF(C161<>0,LOOKUP(,-CODE(C$3:C161),C$3:C161),D160) -> 22 | E161: 22(750)-528 | I161: 750 | J161: 720 | K161: 528 | L161: 13144.22855 | M161: 13827.78016 | N161: 13912.26407 | O161: 14596.77573 | P161: 16151.08761 | Q161: 16773.19638
C162: 0 | D162: =IF(C162<>0,LOOKUP(,-CODE(C$3:C162),C$3:C162),D161) -> 22 | E162: 22(800)-528 | I162: 800 | J162: 720 | K162: 528 | L162: 13645.07141 | M162: 14374.37614 | N162: 14464.51493 | O162: 15194.84397 | P162: 16853.19279 | Q162: 17516.94204
C163: 0 | D163: =IF(C163<>0,LOOKUP(,-CODE(C$3:C163),C$3:C163),D162) -> 22 | E163: 22(850)-528 | I163: 850 | J163: 720 | K163: 528 | L163: 14145.91427 | M163: 14920.97213 | N163: 15016.76579 | O163: 15792.91221 | P163: 17555.29797 | Q163: 18260.68771
C164: 0 | D164: =IF(C164<>0,LOOKUP(,-CODE(C$3:C164),C$3:C164),D163) -> 22 | E164: 22(900)-528 | I164: 900 | J164: 720 | K164: 528 | L164: 14646.75714 | M164: 15467.56811 | N164: 15569.01666 | O164: 16390.98045 | P164: 18257.40316 | Q164: 19004.43337
B165: 23В | C165: 23 | D165: =IF(C165<>0,LOOKUP(,-CODE(C$3:C165),C$3:C165),D164) -> 23 | E165: 23(450)-528 | F165: Тумба кухонная с двумя леграбоксами под варочную поверхность | I165: 450 | J165: 720 | K165: 528 | L165: 10121.12573 | M165: 10530.15862 | N165: 10580.71325 | O165: 10990.32062 | P165: 11920.41087 | Q165: 12292.67676
C166: 0 | D166: =IF(C166<>0,LOOKUP(,-CODE(C$3:C166),C$3:C166),D165) -> 23 | E166: 23(600)-528 | I166: 600 | J166: 720 | K166: 528 | L166: 11613.38257 | M166: 12159.67483 | N166: 12227.19409 | O166: 12774.25361 | P166: 14016.45467 | Q166: 14513.642
C167: 0 | D167: =IF(C167<>0,LOOKUP(,-CODE(C$3:C167),C$3:C167),D166) -> 23 | E167: 23(900)-528 | I167: 900 | J167: 720 | K167: 528 | L167: 14597.89627 | M167: 15418.70724 | N167: 15520.15579 | O167: 16342.11958 | P167: 18208.54229 | Q167: 18955.5725
B168: 26 | C168: 24 | D168: =IF(C168<>0,LOOKUP(,-CODE(C$3:C168),C$3:C168),D167) -> 24 | E168: 24(300)-528 | F168: Тумба кухонная метабоксом(верх) и леграбоксом | I168: 300 | J168: 720 | K168: 528 | L168: 6908.301955 | M168: 7180.075488 | N168: 7213.665475 | O168: 7485.820713 | P168: 8103.800136 | Q168: 8351.144587
C169: 0 | D169: =IF(C169<>0,LOOKUP(,-CODE(C$3:C169),C$3:C169),D168) -> 24 | E169: 24(350)-528 | I169: 350 | J169: 720 | K169: 528 | L169: 7409.914817 | M169: 7727.44147 | N169: 7766.686337 | O169: 8084.658955 | P169: 8806.675318 | Q169: 9095.660249
C170: 0 | D170: =IF(C170<>0,LOOKUP(,-CODE(C$3:C170),C$3:C170),D169) -> 24 | E170: 24(400)-528 | I170: 400 | J170: 720 | K170: 528 | L170: 7911.527679 | M170: 8274.807452 | N170: 8319.707199 | O170: 8683.497197 | P170: 9509.5505 | Q170: 9840.175911
C171: 0 | D171: =IF(C171<>0,LOOKUP(,-CODE(C$3:C171),C$3:C171),D170) -> 24 | E171: 24(450)-528 | I171: 450 | J171: 720 | K171: 528 | L171: 8413.140541 | M171: 8822.173434 | N171: 8872.728061 | O171: 9282.335439 | P171: 10212.42568 | Q171: 10584.69157
C172: 0 | D172: =IF(C172<>0,LOOKUP(,-CODE(C$3:C172),C$3:C172),D171) -> 24 | E172: 24(500)-528 | I172: 500 | J172: 720 | K172: 528 | L172: 8914.753403 | M172: 9369.539416 | N172: 9425.748923 | O172: 9881.173681 | P172: 10915.30086 | Q172: 11329.20724
C173: 0 | D173: =IF(C173<>0,LOOKUP(,-CODE(C$3:C173),C$3:C173),D172) -> 24 | E173: 24(550)-528 | I173: 550 | J173: 720 | K173: 528 | L173: 9416.366266 | M173: 9916.905398 | N173: 9978.769786 | O173: 10480.01192 | P173: 11618.17605 | Q173: 12073.7229
C174: 0 | D174: =IF(C174<>0,LOOKUP(,-CODE(C$3:C174),C$3:C174),D173) -> 24 | E174: 24(600)-528 | I174: 600 | J174: 720 | K174: 528 | L174: 9917.979128 | M174: 10464.27138 | N174: 10531.79065 | O174: 11078.85016 | P174: 12321.05123 | Q174: 12818.23856
C175: 0 | D175: =IF(C175<>0,LOOKUP(,-CODE(C$3:C175),C$3:C175),D174) -> 24 | E175: 24(650)-528 | I175: 650 | J175: 720 | K175: 528 | L175: 10419.59199 | M175: 11011.63736 | N175: 11084.81151 | O175: 11677.68841 | P175: 13023.92641 | Q175: 13562.75422
C176: 0 | D176: =IF(C176<>0,LOOKUP(,-CODE(C$3:C176),C$3:C176),D175) -> 24 | E176: 24(700)-528 | I176: 700 | J176: 720 | K176: 528 | L176: 10921.20485 | M176: 11559.00334 | N176: 11637.83237 | O176: 12276.52665 | P176: 13726.80159 | Q176: 14307.26988
C177: 0 | D177: =IF(C177<>0,LOOKUP(,-CODE(C$3:C177),C$3:C177),D176) -> 24 | E177: 24(750)-528 | I177: 750 | J177: 720 | K177: 528 | L177: 11422.81771 | M177: 12106.36933 | N177: 12190.85323 | O177: 12875.36489 | P177: 14429.67677 | Q177: 15051.78555
C178: 0 | D178: =IF(C178<>0,LOOKUP(,-CODE(C$3:C178),C$3:C178),D177) -> 24 | E178: 24(800)-528 | I178: 800 | J178: 720 | K178: 528 | L178: 11924.43058 | M178: 12653.73531 | N178: 12743.8741 | O178: 13474.20313 | P178: 15132.55196 | Q178: 15796.30121
C179: 0 | D179: =IF(C179<>0,LOOKUP(,-CODE(C$3:C179),C$3:C179),D178) -> 24 | E179: 24(850)-528 | I179: 850 | J179: 720 | K179: 528 | L179: 12426.04344 | M179: 13201.10129 | N179: 13296.89496 | O179: 14073.04137 | P179: 15835.42714 | Q179: 16540.81687
C180: 0 | D180: =IF(C180<>0,LOOKUP(,-CODE(C$3:C180),C$3:C180),D179) -> 24 | E180: 24(900)-528 | I180: 900 | J180: 720 | K180: 528 | L180: 12927.6563 | M180: 13748.46727 | N180: 13849.91582 | O180: 14671.87962 | P180: 16538.30232 | Q180: 17285.33253
C181: 25 | D181: =IF(C181<>0,LOOKUP(,-CODE(C$3:C181),C$3:C181),D180) -> 25 | E181: 25(300)-528 | F181: Тумба кухонная леграбоксом(верх) и метабоксом | I181: 300 | J181: 720 | K181: 528 | L181: 6908.301955 | M181: 7180.075488 | N181: 7213.665475 | O181: 7485.820713 | P181: 8103.800136 | Q181: 8351.144587
C182: 0 | D182: =IF(C182<>0,LOOKUP(,-CODE(C$3:C182),C$3:C182),D181) -> 25 | E182: 25(350)-528 | I182: 350 | J182: 720 | K182: 528 | L182: 7409.914817 | M182: 7727.44147 | N182: 7766.686337 | O182: 8084.658955 | P182: 8806.675318 | Q182: 9095.660249
C183: 0 | D183: =IF(C183<>0,LOOKUP(,-CODE(C$3:C183),C$3:C183),D182) -> 25 | E183: 25(400)-528 | I183: 400 | J183: 720 | K183: 528 | L183: 7911.527679 | M183: 8274.807452 | N183: 8319.707199 | O183: 8683.497197 | P183: 9509.5505 | Q183: 9840.175911
C184: 0 | D184: =IF(C184<>0,LOOKUP(,-CODE(C$3:C184),C$3:C184),D183) -> 25 | E184: 25(450)-528 | I184: 450 | J184: 720 | K184: 528 | L184: 8413.140541 | M184: 8822.173434 | N184: 8872.728061 | O184: 9282.335439 | P184: 10212.42568 | Q184: 10584.69157
C185: 0 | D185: =IF(C185<>0,LOOKUP(,-CODE(C$3:C185),C$3:C185),D184) -> 25 | E185: 25(500)-528 | I185: 500 | J185: 720 | K185: 528 | L185: 8914.753403 | M185: 9369.539416 | N185: 9425.748923 | O185: 9881.173681 | P185: 10915.30086 | Q185: 11329.20724
C186: 0 | D186: =IF(C186<>0,LOOKUP(,-CODE(C$3:C186),C$3:C186),D185) -> 25 | E186: 25(550)-528 | I186: 550 | J186: 720 | K186: 528 | L186: 9416.366266 | M186: 9916.905398 | N186: 9978.769786 | O186: 10480.01192 | P186: 11618.17605 | Q186: 12073.7229
C187: 0 | D187: =IF(C187<>0,LOOKUP(,-CODE(C$3:C187),C$3:C187),D186) -> 25 | E187: 25(600)-528 | I187: 600 | J187: 720 | K187: 528 | L187: 9917.979128 | M187: 10464.27138 | N187: 10531.79065 | O187: 11078.85016 | P187: 12321.05123 | Q187: 12818.23856
C188: 0 | D188: =IF(C188<>0,LOOKUP(,-CODE(C$3:C188),C$3:C188),D187) -> 25 | E188: 25(650)-528 | I188: 650 | J188: 720 | K188: 528 | L188: 10419.59199 | M188: 11011.63736 | N188: 11084.81151 | O188: 11677.68841 | P188: 13023.92641 | Q188: 13562.75422
C189: 0 | D189: =IF(C189<>0,LOOKUP(,-CODE(C$3:C189),C$3:C189),D188) -> 25 | E189: 25(700)-528 | I189: 700 | J189: 720 | K189: 528 | L189: 10921.20485 | M189: 11559.00334 | N189: 11637.83237 | O189: 12276.52665 | P189: 13726.80159 | Q189: 14307.26988
C190: 0 | D190: =IF(C190<>0,LOOKUP(,-CODE(C$3:C190),C$3:C190),D189) -> 25 | E190: 25(750)-528 | I190: 750 | J190: 720 | K190: 528 | L190: 11422.81771 | M190: 12106.36933 | N190: 12190.85323 | O190: 12875.36489 | P190: 14429.67677 | Q190: 15051.78555
C191: 0 | D191: =IF(C191<>0,LOOKUP(,-CODE(C$3:C191),C$3:C191),D190) -> 25 | E191: 25(800)-528 | I191: 800 | J191: 720 | K191: 528 | L191: 11924.43058 | M191: 12653.73531 | N191: 12743.8741 | O191: 13474.20313 | P191: 15132.55196 | Q191: 15796.30121
C192: 0 | D192: =IF(C192<>0,LOOKUP(,-CODE(C$3:C192),C$3:C192),D191) -> 25 | E192: 25(850)-528 | I192: 850 | J192: 720 | K192: 528 | L192: 12426.04344 | M192: 13201.10129 | N192: 13296.89496 | O192: 14073.04137 | P192: 15835.42714 | Q192: 16540.81687
C193: 0 | D193: =IF(C193<>0,LOOKUP(,-CODE(C$3:C193),C$3:C193),D192) -> 25 | E193: 25(900)-528 | I193: 900 | J193: 720 | K193: 528 | L193: 12927.6563 | M193: 13748.46727 | N193: 13849.91582 | O193: 14671.87962 | P193: 16538.30232 | Q193: 17285.33253
B194: 30/1 | C194: 26 | D194: =IF(C194<>0,LOOKUP(,-CODE(C$3:C194),C$3:C194),D193) -> 26 | E194: 26-180(300)-528 | F194: Тумба кухонная с тремя метабоксами,Н - 180 мм | I194: 300 | J194: 720 | K194: 528 | L194: 6360.324023 | M194: 6630.95565 | N194: 6664.404503 | O194: 6935.416231 | P194: 7550.799102 | Q194: 7797.104291
C195: 0 | D195: =IF(C195<>0,LOOKUP(,-CODE(C$3:C195),C$3:C195),D194) -> 26 | E195: 26-180(350)-528 | I195: 350 | J195: 720 | K195: 528 | L195: 6878.743272 | M195: 7194.935779 | N195: 7234.015752 | O195: 7550.652349 | P195: 8269.635031 | Q195: 8557.40574
C196: 0 | D196: =IF(C196<>0,LOOKUP(,-CODE(C$3:C196),C$3:C196),D195) -> 26 | E196: 26-180(400)-528 | I196: 400 | J196: 720 | K196: 528 | L196: 7398.46252 | M196: 7760.215907 | N196: 7804.927 | O196: 8167.188468 | P196: 8989.770959 | Q196: 9319.007188
C197: 0 | D197: =IF(C197<>0,LOOKUP(,-CODE(C$3:C197),C$3:C197),D196) -> 26 | E197: 26-180(450)-528 | I197: 450 | J197: 720 | K197: 528 | L197: 7918.181769 | M197: 8325.496036 | N197: 8375.838249 | O197: 8783.724587 | P197: 9709.906888 | Q197: 10080.60864
C198: 0 | D198: =IF(C198<>0,LOOKUP(,-CODE(C$3:C198),C$3:C198),D197) -> 26 | E198: 26-180(500)-528 | I198: 500 | J198: 720 | K198: 528 | L198: 8437.901018 | M198: 8890.776165 | N198: 8946.749498 | O198: 9400.260705 | P198: 10430.04282 | Q198: 10842.21009
C199: 0 | D199: =IF(C199<>0,LOOKUP(,-CODE(C$3:C199),C$3:C199),D198) -> 26 | E199: 26-180(550)-528 | I199: 550 | J199: 720 | K199: 528 | L199: 8957.620266 | M199: 9456.056294 | N199: 9517.660746 | O199: 10016.79682 | P199: 11150.17875 | Q199: 11603.81153
C200: 0 | D200: =IF(C200<>0,LOOKUP(,-CODE(C$3:C200),C$3:C200),D199) -> 26 | E200: 26-180(600)-528 | I200: 600 | J200: 720 | K200: 528 | L200: 9477.339515 | M200: 10021.33642 | N200: 10088.572 | O200: 10633.33294 | P200: 11870.31467 | Q200: 12365.41298
C201: 0 | D201: =IF(C201<>0,LOOKUP(,-CODE(C$3:C201),C$3:C201),D200) -> 26 | E201: 26-180(650)-528 | I201: 650 | J201: 720 | K201: 528 | L201: 9997.058764 | M201: 10586.61655 | N201: 10659.48324 | O201: 11249.86906 | P201: 12590.4506 | Q201: 13127.01443
... 3833 more rows

Sheet Процент
A1: 0

Sheet Расчет
B1: Бланк заказа от 19.09.2016
B9: 40 | Y9: Самовывоз
B10: Карта заказа № | D10: 2/ЛИГА | I10: Каркас | K10: ЛДСП | P10: Козырек/менсола | Y10: Доставка до клиента
Y11: Доставка до ТК
B12: Менеджер | I12: Фасад | K12: Валенсия20, бук лак | P12: Балюстрада
B14: Компания | I14: Рисунок фасада | K14: Прямая 20 | P14: Цоколь, ножки | R14: ЛДСП 100мм
B16: Заказчик | D16: ИП Леман | I16: Стекло | K16: А2 простое | P16: Мойка
B18: Дата согласования | I18: Столешница | P18: Сушилка | R18: на 700 хром
B20: Срок изгот. (дни) | I20: Отбортов. профиль | P20: Ручки
B22: Способ доставки | I22: Стеновая панель | P22: Планки стол., стен. панели
B24: Сумма доставки | I24: Багет | P24: Прочее
B26: Адрес доставки
B28: 1.Стандартные модули
B29: № | C29: Примечание | G29: Старый № поз. | H29: № позиции | I29: Тип | K29: Ширина | L29: Высота | M29: Глубина | N29: Кол-во | O29: Коллекция | S29: Цена | T29: Сумма
B30: 1 | C30: Два распашных фасада | G30: =IF(I30="","",V(OFFSET(Прайс2!$E$3:$E$4068,MATCH(Расчет!I30,Прайс2!$E$3:$E$4068,0)-1,-3,1,1))) -> 0 | H30: 207 | I30: 207(2240)-600 | K30: =IF(I30="","",VLOOKUP(I30,Прайс2!$E$3:$K$4034,5,FALSE)) -> 600 | L30: =IF(I30="","",VLOOKUP(I30,Прайс2!$E$3:$K$4034,6,FALSE)) -> 2240 | M30: =IF(I30="","",VLOOKUP(I30,Прайс2!$E$3:$K$4034,7,FALSE)) -> 560 | N30: 1 | O30: Валенсия 20 КЛАССИКА бук лак | S30: =IF(I30="","",IF(O30="","",INDEX(Прайс2!$L$3:$Q$4034,MATCH(I30,Прайс2!$E$3:$E$4034,0),MATCH(O30,Прайс2!$L$2:$Q$2,0))*IF(Процент!$A$1=0,1,Процент!$A$1+1))) -> 14456.53887 | T30: =IF(N30="","",IF(S30="","",N30*S30)) -> 14456.53887
B31: 2 | G31: =IF(I31="","",V(OFFSET(Прайс2!$E$3:$E$4068,MATCH(Расчет!I31,Прайс2!$E$3:$E$4068,0)-1,-3,1,1))) -> 108 | H31: 107 | I31: 107(920)-600 | K31: =IF(I31="","",VLOOKUP(I31,Прайс2!$E$3:$K$4034,5,FALSE)) -> 600 | L31: =IF(I31="","",VLOOKUP(I31,Прайс2!$E$3:$K$4034,6,FALSE)) -> 920 | M31: =IF(I31="","",VLOOKUP(I31,Прайс2!$E$3:$K$4034,7,FALSE)) -> 315 | N31: 1 | O31: Валенсия 20 КЛАССИКА бук лак | S31: =IF(I31="","",IF(O31="","",INDEX(Прайс2!$L$3:$Q$4034,MATCH(I31,Прайс2!$E$3:$E$4034,0),MATCH(O31,Прайс2!$L$2:$Q$2,0))*IF(Процент!$A$1=0,1,Процент!$A$1+1))) -> 8477.949442 | T31: 8477.949442
B32: 3 | C32: Ширина 730!!! | G32: =IF(I32="","",V(OFFSET(Прайс2!$E$3:$E$4068,MATCH(Расчет!I32,Прайс2!$E$3:$E$4068,0)-1,-3,1,1))) -> 108 | H32: 107 | I32: 107(920)-750 | K32: 730 | L32: =IF(I32="","",VLOOKUP(I32,Прайс2!$E$3:$K$4034,6,FALSE)) -> 920 | M32: =IF(I32="","",VLOOKUP(I32,Прайс2!$E$3:$K$4034,7,FALSE)) -> 315 | N32: 1 | O32: Валенсия 20 КЛАССИКА бук лак | S32: =IF(I32="","",IF(O32="","",INDEX(Прайс2!$L$3:$Q$4034,MATCH(I32,Прайс2!$E$3:$E$4034,0),MATCH(O32,Прайс2!$L$2:$Q$2,0))*IF(Процент!$A$1=0,1,Процент!$A$1+1))) -> 10185.20825 | T32: 10185.20825
B33: 4 | G33: =IF(I33="","",V(OFFSET(Прайс2!$E$3:$E$4068,MATCH(Расчет!I33,Прайс2!$E$3:$E$4068,0)-1,-3,1,1))) -> 122 | H33: 121 | I33: 121(920)-500 | K33: =IF(I33="","",VLOOKUP(I33,Прайс2!$E$3:$K$4034,5,FALSE)) -> 500 | L33: =IF(I33="","",VLOOKUP(I33,Прайс2!$E$3:$K$4034,6,FALSE)) -> 920 | M33: =IF(I33="","",VLOOKUP(I33,Прайс2!$E$3:$K$4034,7,FALSE)) -> 500 | N33: 1 | O33: Валенсия 20 КЛАССИКА бук лак | S33: =IF(I33="","",IF(O33="","",INDEX(Прайс2!$L$3:$Q$4034,MATCH(I33,Прайс2!$E$3:$E$4034,0),MATCH(O33,Прайс2!$L$2:$Q$2,0))*IF(Процент!$A$1=0,1,Процент!$A$1+1))) -> 5127.079428 | T33: 5127.079428
B34: 5 | C34: Решетка прямая!!! ШИРИНА 744!! | G34: =IF(I34="","",V(OFFSET(Прайс2!$E$3:$E$4068,MATCH(Расчет!I34,Прайс2!$E$3:$E$4068,0)-1,-3,1,1))) -> 146 | H34: 145 | I34: 145(920)-800 | K34: 744 | L34: =IF(I34="","",VLOOKUP(I34,Прайс2!$E$3:$K$4034,6,FALSE)) -> 920 | M34: =IF(I34="","",VLOOKUP(I34,Прайс2!$E$3:$K$4034,7,FALSE)) -> 315 | N34: 1 | O34: Валенсия 20 КЛАССИКА бук лак | S34: =IF(I34="","",IF(O34="","",INDEX(Прайс2!$L$3:$Q$4034,MATCH(I34,Прайс2!$E$3:$E$4034,0),MATCH(O34,Прайс2!$L$2:$Q$2,0))*IF(Процент!$A$1=0,1,Процент!$A$1+1))) -> 12886.31913 | T34: 12886.31913
B35: 6 | G35: =IF(I35="","",V(OFFSET(Прайс2!$E$3:$E$4068,MATCH(Расчет!I35,Прайс2!$E$3:$E$4068,0)-1,-3,1,1))) -> 1 | H35: 1 | I35: 1(600)-528 | K35: =IF(I35="","",VLOOKUP(I35,Прайс2!$E$3:$K$4034,5,FALSE)) -> 600 | L35: =IF(I35="","",VLOOKUP(I35,Прайс2!$E$3:$K$4034,6,FALSE)) -> 720 | M35: =IF(I35="","",VLOOKUP(I35,Прайс2!$E$3:$K$4034,7,FALSE)) -> 528 | N35: 1 | O35: Валенсия 20 КЛАССИКА бук лак | S35: =IF(I35="","",IF(O35="","",INDEX(Прайс2!$L$3:$Q$4034,MATCH(I35,Прайс2!$E$3:$E$4034,0),MATCH(O35,Прайс2!$L$2:$Q$2,0))*IF(Процент!$A$1=0,1,Процент!$A$1+1))) -> 6727.010112 | T35: 6727.010112
B36: 7 | C36: М/Б | G36: =IF(I36="","",V(OFFSET(Прайс2!$E$3:$E$4068,MATCH(Расчет!I36,Прайс2!$E$3:$E$4068,0)-1,-3,1,1))) -> 30В/1 | H36: 27 | I36: 27-180(900)-528 | K36: =IF(I36="","",VLOOKUP(I36,Прайс2!$E$3:$K$4034,5,FALSE)) -> 900 | L36: =IF(I36="","",VLOOKUP(I36,Прайс2!$E$3:$K$4034,6,FALSE)) -> 720 | M36: =IF(I36="","",VLOOKUP(I36,Прайс2!$E$3:$K$4034,7,FALSE)) -> 528 | N36: 1 | O36: Валенсия 20 КЛАССИКА бук лак | S36: =IF(I36="","",IF(O36="","",INDEX(Прайс2!$L$3:$Q$4034,MATCH(I36,Прайс2!$E$3:$E$4034,0),MATCH(O36,Прайс2!$L$2:$Q$2,0))*IF(Процент!$A$1=0,1,Процент!$A$1+1))) -> 12576.92457 | T36: 12576.92457
B37: 8 | G37: =IF(I37="","",V(OFFSET(Прайс2!$E$3:$E$4068,MATCH(Расчет!I37,Прайс2!$E$3:$E$4068,0)-1,-3,1,1))) -> 81 | H37: 59 | I37: 59(1050-100)-528 | K37: =IF(I37="","",VLOOKUP(I37,Прайс2!$E$3:$K$4034,5,FALSE)) -> 1050 | L37: =IF(I37="","",VLOOKUP(I37,Прайс2!$E$3:$K$4034,6,FALSE)) -> 720 | M37: =IF(I37="","",VLOOKUP(I37,Прайс2!$E$3:$K$4034,7,FALSE)) -> 528 | N37: 1 | O37: Валенсия 20 КЛАССИКА бук лак | S37: =IF(I37="","",IF(O37="","",INDEX(Прайс2!$L$3:$Q$4034,MATCH(I37,Прайс2!$E$3:$E$4034,0),MATCH(O37,Прайс2!$L$2:$Q$2,0))*IF(Процент!$A$1=0,1,Процент!$A$1+1))) -> 6959.278444 | T37: 6959.278444
B38: 9 | C38: Ширина 244!!!! | G38: =IF(I38="","",V(OFFSET(Прайс2!$E$3:$E$4068,MATCH(Расчет!I38,Прайс2!$E$3:$E$4068,0)-1,-3,1,1))) -> 1 | H38: 1 | I38: 1(300)-528 | K38: 244 | L38: =IF(I38="","",VLOOKUP(I38,Прайс2!$E$3:$K$4034,6,FALSE)) -> 720 | M38: =IF(I38="","",VLOOKUP(I38,Прайс2!$E$3:$K$4034,7,FALSE)) -> 528 | N38: 1 | O38: Валенсия 20 КЛАССИКА бук лак | S38: =IF(I38="","",IF(O38="","",INDEX(Прайс2!$L$3:$Q$4034,MATCH(I38,Прайс2!$E$3:$E$4034,0),MATCH(O38,Прайс2!$L$2:$Q$2,0))*IF(Процент!$A$1=0,1,Процент!$A$1+1))) -> 3923.888219 | T38: 3923.888219
B39: 10 | G39: =IF(I39="","",V(OFFSET(Прайс2!$E$3:$E$4068,MATCH(Расчет!I39,Прайс2!$E$3:$E$4068,0)-1,-3,1,1))) -> 14 | H39: 11 | I39: 11(300)-528 | K39: =IF(I39="","",VLOOKUP(I39,Прайс2!$E$3:$K$4034,5,FALSE)) -> 300 | L39: =IF(I39="","",VLOOKUP(I39,Прайс2!$E$3:$K$4034,6,FALSE)) -> 720 | M39: =IF(I39="","",VLOOKUP(I39,Прайс2!$E$3:$K$4034,7,FALSE)) -> 528 | N39: 1 | O39: Валенсия 20 КЛАССИКА бук лак | S39: =IF(I39="","",IF(O39="","",INDEX(Прайс2!$L$3:$Q$4034,MATCH(I39,Прайс2!$E$3:$E$4034,0),MATCH(O39,Прайс2!$L$2:$Q$2,0))*IF(Процент!$A$1=0,1,Процент!$A$1+1))) -> 6946.524095 | T39: 6946.524095
B40: 11 | G40: =IF(I40="","",V(OFFSET(Прайс2!$E$3:$E$4068,MATCH(Расчет!I40,Прайс2!$E$3:$E$4068,0)-1,-3,1,1))) ->  | K40: =IF(I40="","",VLOOKUP(I40,Прайс2!$E$3:$K$4034,5,FALSE)) ->  | L40: =IF(I40="","",VLOOKUP(I40,Прайс2!$E$3:$K$4034,6,FALSE)) ->  | M40: =IF(I40="","",VLOOKUP(I40,Прайс2!$E$3:$K$4034,7,FALSE)) ->  | S40: =IF(I40="","",IF(O40="","",INDEX(Прайс2!$L$3:$Q$4034,MATCH(I40,Прайс2!$E$3:$E$4034,0),MATCH(O40,Прайс2!$L$2:$Q$2,0))*IF(Процент!$A$1=0,1,Процент!$A$1+1))) -> 
B41: 12 | G41: =IF(I41="","",V(OFFSET(Прайс2!$E$3:$E$4068,MATCH(Расчет!I41,Прайс2!$E$3:$E$4068,0)-1,-3,1,1))) ->  | K41: =IF(I41="","",VLOOKUP(I41,Прайс2!$E$3:$K$4034,5,FALSE)) ->  | L41: =IF(I41="","",VLOOKUP(I41,Прайс2!$E$3:$K$4034,6,FALSE)) ->  | M41: =IF(I41="","",VLOOKUP(I41,Прайс2!$E$3:$K$4034,7,FALSE)) ->  | S41: =IF(I41="","",IF(O41="","",INDEX(Прайс2!$L$3:$Q$4034,MATCH(I41,Прайс2!$E$3:$E$4034,0),MATCH(O41,Прайс2!$L$2:$Q$2,0))*IF(Процент!$A$1=0,1,Процент!$A$1+1))) -> 
B42: 13 | G42: =IF(I42="","",V(OFFSET(Прайс2!$E$3:$E$4068,MATCH(Расчет!I42,Прайс2!$E$3:$E$4068,0)-1,-3,1,1))) ->  | K42: =IF(I42="","",VLOOKUP(I42,Прайс2!$E$3:$K$4034,5,FALSE)) ->  | L42: =IF(I42="","",VLOOKUP(I42,Прайс2!$E$3:$K$4034,6,FALSE)) ->  | M42: =IF(I42="","",VLOOKUP(I42,Прайс2!$E$3:$K$4034,7,FALSE)) ->  | S42: =IF(I42="","",IF(O42="","",INDEX(Прайс2!$L$3:$Q$4034,MATCH(I42,Прайс2!$E$3:$E$4034,0),MATCH(O42,Прайс2!$L$2:$Q$2,0))*IF(Процент!$A$1=0,1,Процент!$A$1+1))) -> 
B43: 14 | G43: =IF(I43="","",V(OFFSET(Прайс2!$E$3:$E$4068,MATCH(Расчет!I43,Прайс2!$E$3:$E$4068,0)-1,-3,1,1))) ->  | K43: =IF(I43="","",VLOOKUP(I43,Прайс2!$E$3:$K$4034,5,FALSE)) ->  | L43: =IF(I43="","",VLOOKUP(I43,Прайс2!$E$3:$K$4034,6,FALSE)) ->  | M43: =IF(I43="","",VLOOKUP(I43,Прайс2!$E$3:$K$4034,7,FALSE)) ->  | S43: =IF(I43="","",IF(O43="","",INDEX(Прайс2!$L$3:$Q$4034,MATCH(I43,Прайс2!$E$3:$E$4034,0),MATCH(O43,Прайс2!$L$2:$Q$2,0))*IF(Процент!$A$1=0,1,Процент!$A$1+1))) -> 
B44: 15 | G44: =IF(I44="","",V(OFFSET(Прайс2!$E$3:$E$4068,MATCH(Расчет!I44,Прайс2!$E$3:$E$4068,0)-1,-3,1,1))) ->  | K44: =IF(I44="","",VLOOKUP(I44,Прайс2!$E$3:$K$4034,5,FALSE)) ->  | L44: =IF(I44="","",VLOOKUP(I44,Прайс2!$E$3:$K$4034,6,FALSE)) ->  | M44: =IF(I44="","",VLOOKUP(I44,Прайс2!$E$3:$K$4034,7,FALSE)) ->  | S44: =IF(I44="","",IF(O44="","",INDEX(Прайс2!$L$3:$Q$4034,MATCH(I44,Прайс2!$E$3:$E$4034,0),MATCH(O44,Прайс2!$L$2:$Q$2,0))*IF(Процент!$A$1=0,1,Процент!$A$1+1))) -> 
B45: 16 | G45: =IF(I45="","",V(OFFSET(Прайс2!$E$3:$E$4068,MATCH(Расчет!I45,Прайс2!$E$3:$E$4068,0)-1,-3,1,1))) ->  | K45: =IF(I45="","",VLOOKUP(I45,Прайс2!$E$3:$K$4034,5,FALSE)) ->  | L45: =IF(I45="","",VLOOKUP(I45,Прайс2!$E$3:$K$4034,6,FALSE)) ->  | M45: =IF(I45="","",VLOOKUP(I45,Прайс2!$E$3:$K$4034,7,FALSE)) ->  | S45: =IF(I45="","",IF(O45="","",INDEX(Прайс2!$L$3:$Q$4034,MATCH(I45,Прайс2!$E$3:$E$4034,0),MATCH(O45,Прайс2!$L$2:$Q$2,0))*IF(Процент!$A$1=0,1,Процент!$A$1+1))) -> 
B46: 17 | G46: =IF(I46="","",V(OFFSET(Прайс2!$E$3:$E$4068,MATCH(Расчет!I46,Прайс2!$E$3:$E$4068,0)-1,-3,1,1))) ->  | K46: =IF(I46="","",VLOOKUP(I46,Прайс2!$E$3:$K$4034,5,FALSE)) ->  | L46: =IF(I46="","",VLOOKUP(I46,Прайс2!$E$3:$K$4034,6,FALSE)) ->  | M46: =IF(I46="","",VLOOKUP(I46,Прайс2!$E$3:$K$4034,7,FALSE)) ->  | S46: =IF(I46="","",IF(O46="","",INDEX(Прайс2!$L$3:$Q$4034,MATCH(I46,Прайс2!$E$3:$E$4034,0),MATCH(O46,Прайс2!$L$2:$Q$2,0))*IF(Процент!$A$1=0,1,Процент!$A$1+1))) -> 
B47: 18 | G47: =IF(I47="","",V(OFFSET(Прайс2!$E$3:$E$4068,MATCH(Расчет!I47,Прайс2!$E$3:$E$4068,0)-1,-3,1,1))) ->  | K47: =IF(I47="","",VLOOKUP(I47,Прайс2!$E$3:$K$4034,5,FALSE)) ->  | L47: =IF(I47="","",VLOOKUP(I47,Прайс2!$E$3:$K$4034,6,FALSE)) ->  | M47: =IF(I47="","",VLOOKUP(I47,Прайс2!$E$3:$K$4034,7,FALSE)) ->  | S47: =IF(I47="","",IF(O47="","",INDEX(Прайс2!$L$3:$Q$4034,MATCH(I47,Прайс2!$E$3:$E$4034,0),MATCH(O47,Прайс2!$L$2:$Q$2,0))*IF(Процент!$A$1=0,1,Процент!$A$1+1))) -> 
B48: 19 | G48: =IF(I48="","",V(OFFSET(Прайс2!$E$3:$E$4068,MATCH(Расчет!I48,Прайс2!$E$3:$E$4068,0)-1,-3,1,1))) ->  | K48: =IF(I48="","",VLOOKUP(I48,Прайс2!$E$3:$K$4034,5,FALSE)) ->  | L48: =IF(I48="","",VLOOKUP(I48,Прайс2!$E$3:$K$4034,6,FALSE)) ->  | M48: =IF(I48="","",VLOOKUP(I48,Прайс2!$E$3:$K$4034,7,FALSE)) ->  | S48: =IF(I48="","",IF(O48="","",INDEX(Прайс2!$L$3:$Q$4034,MATCH(I48,Прайс2!$E$3:$E$4034,0),MATCH(O48,Прайс2!$L$2:$Q$2,0))*IF(Процент!$A$1=0,1,Процент!$A$1+1))) -> 
B49: 20 | G49: =IF(I49="","",V(OFFSET(Прайс2!$E$3:$E$4068,MATCH(Расчет!I49,Прайс2!$E$3:$E$4068,0)-1,-3,1,1))) ->  | K49: =IF(I49="","",VLOOKUP(I49,Прайс2!$E$3:$K$4034,5,FALSE)) ->  | L49: =IF(I49="","",VLOOKUP(I49,Прайс2!$E$3:$K$4034,6,FALSE)) ->  | M49: =IF(I49="","",VLOOKUP(I49,Прайс2!$E$3:$K$4034,7,FALSE)) ->  | S49: =IF(I49="","",IF(O49="","",INDEX(Прайс2!$L$3:$Q$4034,MATCH(I49,Прайс2!$E$3:$E$4034,0),MATCH(O49,Прайс2!$L$2:$Q$2,0))*IF(Процент!$A$1=0,1,Процент!$A$1+1))) -> 
B50: 21 | G50: =IF(I50="","",V(OFFSET(Прайс2!$E$3:$E$4068,MATCH(Расчет!I50,Прайс2!$E$3:$E$4068,0)-1,-3,1,1))) ->  | K50: =IF(I50="","",VLOOKUP(I50,Прайс2!$E$3:$K$4034,5,FALSE)) ->  | L50: =IF(I50="","",VLOOKUP(I50,Прайс2!$E$3:$K$4034,6,FALSE)) ->  | M50: =IF(I50="","",VLOOKUP(I50,Прайс2!$E$3:$K$4034,7,FALSE)) ->  | S50: =IF(I50="","",IF(O50="","",INDEX(Прайс2!$L$3:$Q$4034,MATCH(I50,Прайс2!$E$3:$E$4034,0),MATCH(O50,Прайс2!$L$2:$Q$2,0))*IF(Процент!$A$1=0,1,Процент!$A$1+1))) -> 
B51: 22 | G51: =IF(I51="","",V(OFFSET(Прайс2!$E$3:$E$4068,MATCH(Расчет!I51,Прайс2!$E$3:$E$4068,0)-1,-3,1,1))) ->  | K51: =IF(I51="","",VLOOKUP(I51,Прайс2!$E$3:$K$4034,5,FALSE)) ->  | L51: =IF(I51="","",VLOOKUP(I51,Прайс2!$E$3:$K$4034,6,FALSE)) ->  | M51: =IF(I51="","",VLOOKUP(I51,Прайс2!$E$3:$K$4034,7,FALSE)) ->  | S51: =IF(I51="","",IF(O51="","",INDEX(Прайс2!$L$3:$Q$4034,MATCH(I51,Прайс2!$E$3:$E$4034,0),MATCH(O51,Прайс2!$L$2:$Q$2,0))*IF(Процент!$A$1=0,1,Процент!$A$1+1))) -> 
O52: Итого стандартные модули | S52: =SUM(T30:T51) -> 88266.72056
O53: Скидка | T53: =S52*S53 -> 0
O54: Итого с учетом скидки | S54: =S52-T53 -> 88266.72056
B56: 2.Нестандартные модули
B57: № | C57: Примечание | G57: Старый № поз. | H57: Номер позиции | I57: Тип | K57: Ширина | L57: Высота | M57: Глубина | N57: Кол-во | O57: Коллекция | S57: Цена | T57: Сумма
B58: 1 | C58: Фасад ППМ | K58: 450 | L58: 720 | N58: 1 | O58: Валенсия 20 КЛАССИКА бук лак | S58: 3596 | T58: =IF(S58="","",S58*N58) -> 3596
B59: 2 | C59: Фасад на морозилку | K59: 600 | L59: 720 | N59: 1 | O59: Валенсия 20 КЛАССИКА бук лак | S59: 4794 | T59: =IF(S59="","",S59*N59) -> 4794
B60: 3
B61: 4
B62: 5
B63: 6
B64: 7
B65: 8
B66: 9
B67: 10
O68: Итого нестандартные модули | S68: =SUM(T58:T67) -> 8390
O69: Скидка | S69: =S53 -> 0 | T69: =S68*S69 -> 0
O70: Итого с учетом скидки | S70: =S68-T69 -> 8390
B72: 3.Дополнительная комплектация
B73: № | C73: Наименование | G73: Кол-во | H73: Цена | J73: Сумма | M73: № | N73: Наименование | R73: Кол-во | S73: Цена | T73: Сумма
B74: 1 | C74: Доплата за стекло в поз. 107 | G74: 2 | H74: 1080 | J74: =IF(H74="","",H74*G74) -> 2160 | K74: =IF(J74="","",J74*I74) -> 0 | M74: 18 | T74: =IF(S74="","",S74*R74) -> 
B75: 2 | C75: Доплата за решетку в поз. 145 | G75: 1 | H75: 1372 | J75: =IF(H75="","",H75*G75) -> 1372 | K75: =IF(J75="","",J75*I75) -> 0 | M75: 19 | T75: =IF(S75="","",S75*R75) -> 
B76: 3 | C76: Цоколь | G76: 5.6 | H76: 76 | J76: 425.6 | K76: 0 | M76: 20
B77: 4 | M77: 21
B78: 5 | M78: 22
B79: 6 | M79: 23
B80: 7 | M80: 24
B81: 8 | N81: Итого дополнительная комплектация | S81: =(SUM(T74:T80)+SUM(J74:K90)) -> 3957.6
B82: 9
B83: 10
B84: 11 | O84: Итого сумма | S84: =S81+S52+S68 -> 100614.3206
B85: 12
B86: 13 | O86: Всего скидка | S86: =T69+T53 -> 0
B87: 14
B88: 15 | O88: Итого с учетом скидки | S88: =S84-S86 -> 100614.3206
B89: 16
B90: 17 | N90: =IF(S86=0,0%,S86/S84) -> 0 | O90: Технологи/производство

Sheet Столешницы_Багет_Цоколь_Козырек
D1: Заказ № | E1: =Расчет!D10 -> 2/ЛИГА | I1: Дата согласования | L1: =IF(Расчет!D18="","",Расчет!D18) -> 
I2: Срок изготовления | L2: =IF(Расчет!D20="","",Расчет!D20) -> 
B4: Столешница/отбортовочный профиль | L4: Багет
L12: Цоколь
L20: Стеновая панель
B24: Козырек/менсола
L32: Условные обозначения: | Q32: С условиями оформления и размерами заказа согласен.
L34: ∆ - кромить
L35: ○ - завал | Q35: Дата:
L36: Х - технический кант
L37: R - радиус | Q37: Подпись:
L38: = - стяжка (2 шт)
L39: e - еврозапил | T39: М.П.
L40: (ч.р.) - чистый размер

Sheet Инструкция по заполнению бланка
A1: 1. Расчетный бланк Дельта+ необходимо открывать в EXCEL в версии не ранее 2007.
A2: Для функционирования файла следует включить макросы (для информации пройдите по ссылке http://sirexcel.ru/makrosi_vba/kak-vklyuchit-ili-otklyuchit-makrosy-v-excel-2003-2007-i-2010/)
A3: 2. В случае сохранения файла под другим названием или в какие-либо месте с помощью "Сохранить как..". Выбираем тип файла "Книга EXCEL с поддержкой макросов"
A4: 3. Заполнение бланка:
A5: 3.1 "Шапка" бланка. Карта заказа, Менеджер, и т.д. заполняется вручную.
A6: 3.2 Блок "Стандартные модули"
A7: Выбираем номер позиции (программа переведет на лист "Прайс"). В столбце С выбираем необходимый номер позиции.
A8: Далее выбираем типоразмер из раскрывающегося списк в графе "Тип".
A9: Выбираем количество модулей в графе "Количество"
A10: В графе "Коллекция" выбираем коллекцию.
A11: В графе "Скидка" ставим вручную скидку.
A12: Автоматически заполняются все ячейке в текущей строке.
A13: 3.3. Блок "Нестандартные модули".
A14: Ячейки "Примечание", "Номер позиции", "Ширина", "Высота", "Глубина", "Количество" и "Цена" ставятся вручную. Коллекция выбирается из раскрывающегося списка.
A15: 3.4. Дополнительная комплектация заполняется вручную. Заполняем артикул в графе "Наименование", "Количество", "Цена"
A16: Итоговая стоимость заказа формируется в графе "Итого сумма с учетом скидки"
A17: 4. Печатный вид.
A18: для приведения бланка в печатную форму надимаем кнопку "Печать". Пустые строки в блоках "Стандартные позиции" и "Нестандартные позиции" автоматически скрываются. Далее - распчатываем, если необходимо.
A19: Для сброса заказа нажимаем кнопку "Новый заказ" (сохраняйте расчеты в отдельном файле перед нажаием кнопки "Новый заказ", т.к.е данные автоматичесик сбрасываются)
A20: 5. Для расчета заказа сразу с наценкой - в листе "Процент" ставим необходимую наценку.
A21: В расчетном бланке сразу цены по позициям будут с наценкой. На фабрику отправляем бланк с нулевой наценкой.
